{"text_format":"1","workbook":"xlsx","n_sheets":24,"sheets":["Page 1","Page 2","Page 3","Page 4","Page 5","Page 6","Page 7","Page 8","Page 9","Additional Weekly Income","Additional Weekly Expenses","Additional Assets (Realty)","Additional Assets (Realty-2)","Additional Assets (Vehicles)","Additional Assets (Vehicles-2)","Additional Assets (Other)","Additional Liabilities","Additional Liabilities (2)","Schedule A (Page 1)","Schedule A (Page 2)","Schedule B","Schedule B (2)","Schedule B (3)","Explanatory Notes"],"not_rendered":{"charts":0,"images":0,"macros":1,"external_links":0,"defined_names":43,"comments":1,"pivot_tables":0},"unopened":[],"bounds":{"document_bytes":16777216,"sheet_cells":100000,"rows_first":2000,"rows_last":500,"rows_between":2000,"halvings":0,"cell_chars":16384,"cell_head_chars":4096},"cells_cut":0,"cells_raw":0,"read":"whole","date_system":"1900"}

{"sheet":"Page 1","index":0,"n_rows":53,"n_cols":26,"rows_kept":53,"cut":false,"hidden":false,"merged":[[25,11,25,26],[28,1,28,14],[30,2,30,5],[30,7,30,8],[30,10,30,11],[30,24,30,27],[23,1,23,7],[23,8,23,11],[23,13,23,22],[21,22,21,23],[22,6,22,14],[21,6,21,14],[23,23,23,27],[21,24,22,24],[21,25,21,26],[22,22,22,23],[16,4,16,14],[19,1,19,3],[17,25,17,26],[17,4,17,8],[21,16,21,20],[22,16,22,20],[21,1,21,5],[19,4,19,13],[19,14,19,16],[19,17,19,26],[20,0,20,27],[21,21,22,21],[17,9,17,12],[17,17,17,24],[17,13,17,16],[22,25,22,26],[18,0,18,27],[7,0,7,27],[15,22,15,23],[16,22,16,23],[17,1,17,3],[10,0,10,27],[11,9,11,27],[16,0,16,3],[15,21,16,21],[15,15,16,15],[15,16,15,20],[16,16,16,20],[15,4,15,14],[16,25,16,26],[15,24,16,24],[11,1,11,8],[14,0,14,26],[15,25,15,26],[13,4,13,15],[13,17,13,21],[12,0,12,27],[13,22,13,26],[32,2,32,5],[32,24,32,27],[32,6,32,21],[33,14,33,21],[33,24,33,27],[0,0,0,27],[1,0,1,2],[1,3,1,7],[1,23,1,27],[1,20,1,22],[1,8,1,19],[31,2,31,4],[30,12,30,21],[31,5,31,21],[31,24,31,27],[2,0,2,27],[3,0,3,27],[4,0,4,27],[5,0,6,27],[8,12,9,15],[8,0,8,11],[9,0,9,11],[8,16,8,27],[9,16,9,27],[40,24,40,27],[40,19,40,21],[41,24,41,27],[39,2,39,5],[39,6,39,21],[39,24,39,27],[34,4,34,21],[34,24,34,27],[35,10,35,21],[35,24,35,27],[36,10,36,21],[36,24,36,27],[37,24,37,27],[37,10,37,21],[38,12,38,21],[38,24,38,27],[52,0,52,3],[52,20,52,28],[52,12,52,16],[51,0,51,28],[42,14,42,21],[42,24,42,27],[43,19,43,21],[43,24,43,27],[50,8,50,21],[44,2,44,8],[44,9,44,21],[45,13,45,21],[45,24,45,27],[44,24,44,27],[45,2,45,11],[50,24,50,27],[48,24,48,27],[47,3,47,21],[48,3,48,21],[46,24,46,27],[47,24,47,27]]}
["Commonwealth of Massachusetts"]
["Division",null,null,null,null,null,null,null,"The Trial Court",null,null,null,null,null,null,null,null,null,null,null,"Docket No."]
["Probate and Family Court Department"]
["FINANCIAL STATEMENT"]
["(Long Form)"]
["INSTRUCTIONS: If your income is less than $75,000.00 annually, you must complete the SHORT FORM financial statement, unless otherwise ordered by the Court."]
[]
[]
[null,null,null,null,null,null,null,null,null,null,null,null,"vs."]
["Plaintiff/Petitioner",null,null,null,null,null,null,null,null,null,null,null,null,null,null,null,"Defendant/Petitioner"]
[]
["I.","PERSONAL INFORMATION"]
[]
[null,"Your Name",null,null,null,null,null,null,null,null,null,null,null,null,null,null,null,"Social Security No."]
[]
[null,"Address"]
[null,null,null,null,"(Street address)",null,null,null,null,null,null,null,null,null,null,null,"(City / Town)",null,null,null,null,null,"(State)",null,null,"(Zip)"]
[null,"Tel. No.",null,null,null,null,null,null,null,"Date of Birth  ",null,null,null,null,null,null,null,"No. of children living with you  "]
[]
[null,"Occupation",null,null,null,null,null,null,null,null,null,null,null,null,"Employer  "]
[]
[null,"Employer's Address"]
[null,null,null,null,null,null,"(Street address)",null,null,null,null,null,null,null,null,null,"(City / Town)",null,null,null,null,null,"(State)",null,null,"(Zip)"]
[null,"Employer's Telephone No.",null,null,null,null,null,null,null,null,null,null,null,"Do you have health insurance coverage?"]
[]
[null,"If yes, name of health insurance provider"]
[]
[]
["II.","GROSS WEEKLY INCOME / RECEIPTS FROM ALL SOURCES"]
[]
[null,"a)","Base pay from ",null,null,null,null,null,null,null,null,null,null,null,null,null,null,null,null,null,null,null,null,"$",0]
[null,"b)","Overtime",null,null,null,null,null,null,null,null,null,null,null,null,null,null,null,null,null,null,null,null,"$",0]
[null,"c)","Part-time job",null,null,null,null,null,null,null,null,null,null,null,null,null,null,null,null,null,null,null,null,"$",0]
[null,"d)","Self-employment (attach a completed schedule A)",null,null,null,null,null,null,null,null,null,null,null,null,null,null,null,null,null,null,null,null,"$",{"$f":"'Schedule A (Page 2)'!T6","v":0}]
[null,"e)","Tips",null,null,null,null,null,null,null,null,null,null,null,null,null,null,null,null,null,null,null,null,"$",0]
[null,"f)",null,null,null,null,null,null,null,null,null,null,null,null,null,null,null,null,null,null,null,null,null,"$",0]
[null,"g)",null,null,null,null,null,null,null,null,null,null,null,null,null,null,null,null,null,null,null,null,null,"$",0]
[null,"h)",null,null,null,null,null,null,null,null,null,null,null,null,null,null,null,null,null,null,null,null,null,"$",0]
[null,"i)",null,null,null,null,null,null,null,null,null,null,null,null,null,null,null,null,null,null,null,null,null,"$",0]
[null,"j)","Social Security",null,null,null,null,null,null,null,null,null,null,null,null,null,null,null,null,null,null,null,null,"$",0]
[null,"k)",null,null,null,null,null,null,null,null,null,null,null,null,null,null,null,null,null,null,null,null,null,"$",0]
[null,"l)","Public Assistance (e.g. welfare, TAFDC, SNAP) (not included in gross income for child support)",null,null,null,null,null,null,null,null,null,null,null,null,null,null,null,null,null,null,null,null,"$",0]
[null,"m)",null,null,null,null,null,null,null,null,null,null,null,null,null,null,null,null,null,null,null,null,null,"$",0]
[null,"n)","Rental from income producing property (attach a completed Schedule B)",null,null,null,null,null,null,null,null,null,null,null,null,null,null,null,null,null,null,null,null,"$",{"$f":"'Schedule B'!S35+'Schedule B (2)'!S35+'Schedule B (3)'!S35","v":0}]
[null,"o)","Royalties and other rights",null,null,null,null,null,null,null,null,null,null,null,null,null,null,null,null,null,null,null,null,"$",0]
[null,"p)","Contributions from household member(s)",null,null,null,null,null,null,null,null,null,null,null,null,null,null,null,null,null,null,null,null,"$",0]
[null,"q)","Other (specify)"]
[null,null,null,null,null,null,null,null,null,null,null,null,null,null,null,null,null,null,null,null,null,null,null,"$",0]
[null,null,null,"TOTAL WEEKLY INCOME FROM ATTACHED ADDITIONAL SCHEDULE, IF ANY",null,null,null,null,null,null,null,null,null,null,null,null,null,null,null,null,null,null,null,"$",{"$f":"'Additional Weekly Income'!H35","v":0}]
[]
[null,null,null,null,null,null,null,null,"r) Total Gross Weekly Income/Receipts (add items a-q)",null,null,null,null,null,null,null,null,null,null,null,null,null,null,"$",{"$f":"SUM(Y31:AB49)","v":0}]
[]
["CJ-D 301 L 9/15/17",null,null,null,null,null,null,null,null,null,null,null,"Page 1 of 9",null,null,null,null,null,null,null,"C.G.F."]

{"sheet":"Page 2","index":1,"n_rows":44,"n_cols":25,"rows_kept":44,"cut":false,"hidden":false,"merged":[[36,4,36,15],[36,17,36,21],[38,0,38,27],[36,24,36,27],[37,24,37,27],[43,0,43,3],[43,20,43,28],[43,12,43,16],[39,1,39,9],[0,0,0,27],[1,0,1,2],[1,3,1,7],[1,23,1,27],[1,20,1,22],[1,8,1,19],[17,24,17,27],[39,24,39,27],[37,10,37,14],[41,3,41,14],[41,15,41,17],[32,24,32,27],[2,0,2,27],[3,0,3,27],[4,0,4,27],[19,4,19,7],[19,8,19,21],[17,4,17,8],[18,24,18,27],[14,4,14,6],[13,24,13,27],[14,24,14,27],[5,0,5,27],[16,4,16,8],[10,4,10,14],[10,15,10,21],[10,24,10,27],[11,4,11,14],[24,24,24,27],[21,4,21,7],[24,4,24,9],[23,11,23,21],[23,4,23,10],[34,1,34,6],[21,8,21,21],[20,4,20,8],[8,4,8,14],[8,24,8,27],[13,7,13,21],[14,7,14,21],[16,9,16,21],[17,9,17,21],[31,0,31,27],[22,4,22,6],[15,24,15,27],[16,24,16,27],[18,8,18,21],[18,4,18,7],[15,4,15,8],[11,15,11,18],[11,19,11,27],[6,1,6,27],[7,2,7,6],[8,15,8,21],[7,7,7,26],[9,19,9,27],[9,4,9,14],[9,15,9,18],[35,24,35,27],[35,17,35,21],[34,7,34,27],[33,0,33,27],[13,4,13,6],[30,24,30,27],[30,4,30,21],[25,4,25,10],[25,11,25,21],[26,4,26,10],[26,11,26,21],[20,9,20,21],[22,7,22,21],[29,4,29,21],[24,10,24,21],[29,24,29,27],[12,8,12,27],[27,4,27,8],[27,9,27,21],[28,4,28,8],[28,9,28,21],[15,9,15,21],[27,24,27,27],[28,24,28,27],[12,2,12,7],[25,24,25,27],[26,24,26,27],[19,24,19,27],[20,24,20,27],[21,24,21,27],[22,24,22,27],[23,24,23,27]]}
["Commonwealth of Massachusetts"]
["Division",null,null,{"$f":"'Page 1'!D2:H2","v":0},null,null,null,null,"The Trial Court",null,null,null,null,null,null,null,null,null,null,null,"Docket No.",null,null,{"$f":"'Page 1'!X2","v":0}]
["Probate and Family Court Department"]
["FINANCIAL STATEMENT"]
["(Long Form)"]
[]
["III.","WEEKLY DEDUCTIONS FROM GROSS INCOME"]
[null,null,"TAX WITHHOLDING"]
[null,null,null,"a)","Federal tax withholding/estimated payments ",null,null,null,null,null,null,null,null,null,null,null,null,null,null,null,null,null,null,"$",0]
[null,null,null,null,"Number of withholding allowances claimed"]
[null,null,null,"b)","State tax withholding/estimated payments ",null,null,null,null,null,null,null,null,null,null,null,null,null,null,null,null,null,null,"$",0]
[null,null,null,null,"Number of withholding allowances claimed"]
[null,null,"OTHER DEDUCTIONS"]
[null,null,null,"c)","F.I.C.A.",null,null,null,null,null,null,null,null,null,null,null,null,null,null,null,null,null,null,"$",0]
[null,null,null,"d)","Medicare",null,null,null,null,null,null,null,null,null,null,null,null,null,null,null,null,null,null,"$",0]
[null,null,null,"e)","Medical Insurance",null,null,null,null,null,null,null,null,null,null,null,null,null,null,null,null,null,null,"$",0]
[null,null,null,"f)","Dental Insurance",null,null,null,null,null,null,null,null,null,null,null,null,null,null,null,null,null,null,"$",0]
[null,null,null,"g)","Vision Insurance",null,null,null,null,null,null,null,null,null,null,null,null,null,null,null,null,null,null,"$",0]
[null,null,null,"h)","Union Dues",null,null,null,null,null,null,null,null,null,null,null,null,null,null,null,null,null,null,"$",0]
[null,null,null,"i)","Child Support",null,null,null,null,null,null,null,null,null,null,null,null,null,null,null,null,null,null,"$",0]
[null,null,null,"j)","Spousal Support",null,null,null,null,null,null,null,null,null,null,null,null,null,null,null,null,null,null,"$",0]
[null,null,null,"k)","Retirement",null,null,null,null,null,null,null,null,null,null,null,null,null,null,null,null,null,null,"$",0]
[null,null,null,"l)","Savings",null,null,null,null,null,null,null,null,null,null,null,null,null,null,null,null,null,null,"$",0]
[null,null,null,"m)","Deferred Compensation",null,null,null,null,null,null,null,null,null,null,null,null,null,null,null,null,null,null,"$",0]
[null,null,null,"n)","Credit Union (Loan)",null,null,null,null,null,null,null,null,null,null,null,null,null,null,null,null,null,null,"$",0]
[null,null,null,"o)","Credit Union (Savings)",null,null,null,null,null,null,null,null,null,null,null,null,null,null,null,null,null,null,"$",0]
[null,null,null,"p)","Charitable Contributions",null,null,null,null,null,null,null,null,null,null,null,null,null,null,null,null,null,null,"$",0]
[null,null,null,"q)","Life Insurance",null,null,null,null,null,null,null,null,null,null,null,null,null,null,null,null,null,null,"$",0]
[null,null,null,"r)","Other (specify)",null,null,null,null,null,null,null,null,null,null,null,null,null,null,null,null,null,null,"$",0]
[null,null,null,null,null,null,null,null,null,null,null,null,null,null,null,null,null,null,null,null,null,null,null,"$",0]
[null,null,null,null,null,null,null,null,null,null,null,null,null,null,null,null,null,null,null,null,null,null,null,"$",0]
[]
[null,null,null,null,null,null,null,"s)","Total Gross Weekly Deductions from Pay (add items a-r)",null,null,null,null,null,null,null,null,null,null,null,null,null,null,"$",{"$f":"SUM(Y9:AB31)","v":0}]
[]
["IV.","NET WEEKLY INCOME"]
[null,null,null,"a)","Enter total gross weekly income/receipts from II(r)",null,null,null,null,null,null,null,null,null,null,null,null,null,null,null,null,null,null,"$",{"$f":"'Page 1'!Y51:AB51","v":0}]
[null,null,null,"b)","Enter total weekly deductions from pay from III(s)",null,null,null,null,null,null,null,null,null,null,null,null,null,null,null,null,null,"-","$",{"$f":"Y33","v":0}]
[null,null,null,null,null,null,null,null,null,"c)","Net Weekly Income",null,null,null,null,null,null,null,null,null,null,null,"=","$",{"$f":"Y36-Y37","v":0}]
[]
["V.","GROSS INCOME FROM PRIOR YEAR",null,null,null,null,null,null,null,null,null,null,null,null,null,null,null,null,null,null,null,null,null,"$",0]
[null,"(attach copy of all W-2 and 1099 forms for prior year)"]
[null,null,null,"Number of years you have paid into Social Security"]
[]
["CJ-D 301 L 9/15/17",null,null,null,null,null,null,null,null,null,null,null,"Page 2 of 9",null,null,null,null,null,null,null,"C.G.F."]

{"sheet":"Page 3","index":2,"n_rows":44,"n_cols":25,"rows_kept":44,"cut":false,"hidden":false,"merged":[[13,1,13,2],[13,3,13,21],[11,10,11,21],[12,2,12,6],[12,14,12,21],[12,8,12,13],[11,1,11,9],[9,24,9,27],[11,24,11,27],[12,24,12,27],[15,8,15,11],[15,12,15,21],[16,1,16,3],[16,5,16,21],[17,2,17,6],[28,1,28,5],[29,1,29,7],[29,8,29,21],[25,24,25,27],[26,24,26,27],[25,1,25,5],[25,6,25,21],[26,1,26,5],[18,4,18,21],[19,1,19,5],[19,6,19,21],[20,1,20,3],[24,6,24,21],[21,1,21,4],[23,6,23,21],[27,6,27,21],[26,6,26,21],[27,1,27,5],[28,6,28,21],[6,1,6,27],[22,1,22,3],[22,4,22,21],[27,24,27,27],[17,8,17,10],[17,11,17,21],[19,24,19,27],[18,24,18,27],[13,24,13,27],[14,24,14,27],[21,5,21,21],[24,24,24,27],[23,1,23,5],[22,24,22,27],[8,1,8,2],[8,3,8,21],[9,17,9,21],[10,10,10,21],[9,1,9,16],[10,24,10,27],[10,1,10,9],[14,4,14,21],[14,1,14,3],[15,2,15,6],[0,0,0,27],[1,0,1,2],[1,3,1,7],[1,23,1,27],[1,20,1,22],[1,8,1,19],[32,24,32,27],[35,24,35,27],[35,1,35,3],[28,24,28,27],[23,24,23,27],[2,0,2,27],[3,0,3,27],[4,0,4,27],[5,0,5,27],[24,1,24,5],[8,24,8,27],[18,1,18,3],[20,24,20,27],[21,24,21,27],[20,4,20,21],[16,24,16,27],[17,24,17,27],[15,24,15,27],[40,24,40,27],[39,1,39,6],[41,24,41,27],[39,24,39,27],[36,1,36,3],[36,4,36,21],[37,18,37,21],[34,24,34,27],[38,24,38,27],[36,24,36,27],[37,24,37,27],[43,0,43,3],[43,20,43,28],[43,12,43,16],[39,7,39,21],[40,1,40,5],[38,1,38,8],[38,9,38,21],[37,1,37,17],[29,24,29,27],[33,7,33,21],[30,2,30,3],[30,4,30,21],[31,24,31,27],[33,24,33,27],[35,4,35,21],[34,1,34,5],[34,6,34,21],[30,24,30,27],[33,2,33,6],[32,2,32,6],[31,2,31,4],[31,5,31,21],[32,7,32,21],[40,6,40,21]]}
["Commonwealth of Massachusetts"]
["Division",null,null,{"$f":"'Page 1'!D2","v":0},null,null,null,null,"The Trial Court",null,null,null,null,null,null,null,null,null,null,null,"Docket No.",null,null,{"$f":"'Page 1'!X2","v":0}]
["Probate and Family Court Department"]
["FINANCIAL STATEMENT"]
["(Long Form)"]
[]
["VI.","WEEKLY EXPENSES NOT DEDUCTED FROM PAY"]
[]
[null,"Rent",null,null,null,null,null,null,null,null,null,null,null,null,null,null,null,null,null,null,null,null,null,"$",0]
[null,"Mortgage (Principal, Interest - Taxes and Insurance, if escrowed)",null,null,null,null,null,null,null,null,null,null,null,null,null,null,null,null,null,null,null,null,null,"$",0]
[null,"Property taxes and assessments",null,null,null,null,null,null,null,null,null,null,null,null,null,null,null,null,null,null,null,null,null,"$",0]
[null,"Homeowner/Tenant Insurance",null,null,null,null,null,null,null,null,null,null,null,null,null,null,null,null,null,null,null,null,null,"$",0]
[null,null,"Maintenance Fees",null,null,null,null,null,"Condominium Fees",null,null,null,null,null,null,null,null,null,null,null,null,null,null,"$",0]
[null,"Heat",null,null,null,null,null,null,null,null,null,null,null,null,null,null,null,null,null,null,null,null,null,"$",0]
[null,"Electricity",null,null,null,null,null,null,null,null,null,null,null,null,null,null,null,null,null,null,null,null,null,"$",0]
[null,null,"Propane",null,null,null,null,null,"Natural Gas",null,null,null,null,null,null,null,null,null,null,null,null,null,null,"$",0]
[null,"Telephone",null,null,null,null,null,null,null,null,null,null,null,null,null,null,null,null,null,null,null,null,null,"$",0]
[null,null,"Water",null,null,null,null,null,"Sewer",null,null,null,null,null,null,null,null,null,null,null,null,null,null,"$",0]
[null,"Food",null,null,null,null,null,null,null,null,null,null,null,null,null,null,null,null,null,null,null,null,null,"$",0]
[null,"House Supplies",null,null,null,null,null,null,null,null,null,null,null,null,null,null,null,null,null,null,null,null,null,"$",0]
[null,"Laundry",null,null,null,null,null,null,null,null,null,null,null,null,null,null,null,null,null,null,null,null,null,"$",0]
[null,"Dry Cleaning",null,null,null,null,null,null,null,null,null,null,null,null,null,null,null,null,null,null,null,null,null,"$",0]
[null,"Clothing",null,null,null,null,null,null,null,null,null,null,null,null,null,null,null,null,null,null,null,null,null,"$",0]
[null,"Life Insurance",null,null,null,null,null,null,null,null,null,null,null,null,null,null,null,null,null,null,null,null,null,"$",0]
[null,"Medical Insurance",null,null,null,null,null,null,null,null,null,null,null,null,null,null,null,null,null,null,null,null,null,"$",0]
[null,"Dental Insurance",null,null,null,null,null,null,null,null,null,null,null,null,null,null,null,null,null,null,null,null,null,"$",0]
[null,"Vision Insurance",null,null,null,null,null,null,null,null,null,null,null,null,null,null,null,null,null,null,null,null,null,"$",0]
[null,"Uninsured Medical",null,null,null,null,null,null,null,null,null,null,null,null,null,null,null,null,null,null,null,null,null,"$",0]
[null,"Uninsured Dental",null,null,null,null,null,null,null,null,null,null,null,null,null,null,null,null,null,null,null,null,null,"$",0]
[null,"Motor Vehicle Expenses",null,null,null,null,null,null,null,null,null,null,null,null,null,null,null,null,null,null,null,null,null,"$",0]
[null,null,"Fuel",null,null,null,null,null,null,null,null,null,null,null,null,null,null,null,null,null,null,null,null,"$",0]
[null,null,"Insurance",null,null,null,null,null,null,null,null,null,null,null,null,null,null,null,null,null,null,null,null,"$",0]
[null,null,"Maintenance Fees",null,null,null,null,null,null,null,null,null,null,null,null,null,null,null,null,null,null,null,null,"$",0]
[null,null,"Loan payment(s)",null,null,null,null,null,null,null,null,null,null,null,null,null,null,null,null,null,null,null,null,"$",0]
[null,"Entertainment",null,null,null,null,null,null,null,null,null,null,null,null,null,null,null,null,null,null,null,null,null,"$",0]
[null,"Vacation",null,null,null,null,null,null,null,null,null,null,null,null,null,null,null,null,null,null,null,null,null,"$",0]
[null,"Cable TV",null,null,null,null,null,null,null,null,null,null,null,null,null,null,null,null,null,null,null,null,null,"$",0]
[null,"Child Support (attach a copy of the order, if issued by a different court)",null,null,null,null,null,null,null,null,null,null,null,null,null,null,null,null,null,null,null,null,null,"$",0]
[null,"Child(ren)'s Day Care Expense",null,null,null,null,null,null,null,null,null,null,null,null,null,null,null,null,null,null,null,null,null,"$",0]
[null,"Child(ren)'s Education",null,null,null,null,null,null,null,null,null,null,null,null,null,null,null,null,null,null,null,null,null,"$",0]
[null,"Education (self)",null,null,null,null,null,null,null,null,null,null,null,null,null,null,null,null,null,null,null,null,null,"$",0]
[]
[]
["CJ-D 301 L 9/15/17",null,null,null,null,null,null,null,null,null,null,null,"Page 3 of 9",null,null,null,null,null,null,null,"C.G.F."]

{"sheet":"Page 4","index":3,"n_rows":43,"n_cols":25,"rows_kept":43,"cut":false,"hidden":false,"merged":[[4,0,4,27],[11,1,11,4],[7,2,7,4],[8,2,8,4],[9,2,9,9],[10,2,10,5],[7,5,7,21],[5,0,5,27],[9,24,9,27],[8,24,8,27],[6,1,6,15],[8,5,8,21],[9,10,9,21],[10,6,10,21],[10,24,10,27],[11,24,11,27],[11,5,11,21],[27,28,28,28],[27,0,28,0],[16,1,16,21],[17,1,17,21],[19,15,19,21],[18,1,18,21],[19,1,19,14],[22,13,22,21],[24,18,24,21],[24,2,24,16],[25,24,25,27],[24,24,24,27],[17,24,17,27],[16,24,16,27],[14,24,14,27],[14,1,14,14],[42,0,42,3],[42,20,42,28],[42,12,42,16],[21,6,21,21],[31,24,31,27],[30,2,30,9],[26,1,26,3],[26,4,26,21],[15,5,15,21],[22,2,22,12],[23,2,23,14],[23,15,23,21],[31,17,31,22],[22,24,22,27],[23,24,23,27],[27,1,28,27],[31,5,31,15],[29,1,29,4],[29,5,29,21],[31,2,31,4],[26,24,26,27],[38,2,38,11],[13,1,13,6],[13,7,13,21],[14,15,14,21],[21,1,21,4],[0,0,0,27],[1,0,1,2],[1,3,1,7],[1,23,1,27],[1,20,1,22],[1,8,1,19],[2,0,2,27],[3,0,3,27],[15,1,15,4],[7,24,7,27],[12,24,12,27],[13,24,13,27],[15,24,15,27],[12,8,12,21],[12,1,12,7],[6,16,6,21],[21,24,21,27],[18,24,18,27],[19,24,19,27],[20,24,20,27],[40,24,40,27],[41,24,41,27],[37,12,37,16],[38,24,38,27],[39,24,39,27],[32,17,32,22],[32,24,32,27],[30,11,30,21],[39,2,39,8],[34,2,34,11],[35,2,35,11],[36,2,36,11],[37,2,37,11],[32,2,32,4],[32,5,32,15],[34,13,34,16],[35,12,35,16],[33,2,33,6],[33,7,33,27],[37,17,37,27],[34,17,34,27],[36,17,36,27],[35,17,35,27],[36,13,36,16]]}
["Commonwealth of Massachusetts"]
["Division",null,null,{"$f":"'Page 1'!D2","v":0},null,null,null,null,"The Trial Court",null,null,null,null,null,null,null,null,null,null,null,"Docket No.",null,null,{"$f":"'Page 1'!X2","v":0}]
["Probate and Family Court Department"]
["FINANCIAL STATEMENT"]
["(Long Form)"]
[]
[null,"Employment related expenses (which are not reimbursed)"]
[null,null,"Uniforms",null,null,null,null,null,null,null,null,null,null,null,null,null,null,null,null,null,null,null,null,"$",0]
[null,null,"Travel",null,null,null,null,null,null,null,null,null,null,null,null,null,null,null,null,null,null,null,null,"$",0]
[null,null,"Required continuing education",null,null,null,null,null,null,null,null,null,null,null,null,null,null,null,null,null,null,null,null,"$",0]
[null,null,"Other (specify)",null,null,null,null,null,null,null,null,null,null,null,null,null,null,null,null,null,null,null,null,"$",0]
[null,"Lottery Tickets",null,null,null,null,null,null,null,null,null,null,null,null,null,null,null,null,null,null,null,null,null,"$",0]
[null,"Charitable Contributions",null,null,null,null,null,null,null,null,null,null,null,null,null,null,null,null,null,null,null,null,null,"$",0]
[null,"Child(ren)'s Allowance",null,null,null,null,null,null,null,null,null,null,null,null,null,null,null,null,null,null,null,null,null,"$",0]
[null,"Extraordinary travel expenses for visitation with child(ren)",null,null,null,null,null,null,null,null,null,null,null,null,null,null,null,null,null,null,null,null,null,"$",0]
[null,"Other (specify)",null,null,null,null,null,null,null,null,null,null,null,null,null,null,null,null,null,null,null,null,null,"$",0]
[null,"TOTAL WEEKLY PAYMENT FOR LIABILITIES FROM PAGE 8",null,null,null,null,null,null,null,null,null,null,null,null,null,null,null,null,null,null,null,null,null,"$",{"$f":"'Page 8'!Y41","v":0}]
[null,"TOTAL WEEKLY EXPENSES FROM ATTACHED ADDITIONAL SCHEDULE, IF ANY",null,null,null,null,null,null,null,null,null,null,null,null,null,null,null,null,null,null,null,null,null,"$",{"$f":"'Additional Weekly Expenses'!H35","v":0}]
[]
[null,"TOTAL WEEKLY EXPENSES NOT DEDUCTED FROM PAY",null,null,null,null,null,null,null,null,null,null,null,null,null,null,null,null,null,null,null,null,null,"$",{"$f":"SUM(Y8:AB18)+SUM('Page 3'!Y9:AB41)","v":0}]
[]
["VII.","COUNSEL FEES"]
[null,null,"Retainer amount(s) paid to your attorney(s)",null,null,null,null,null,null,null,null,null,null,null,null,null,null,null,null,null,null,null,null,"$",0]
[null,null,"Legal fees incurred, to date, against the retainer(s)",null,null,null,null,null,null,null,null,null,null,null,null,null,null,null,null,null,null,null,null,"$",0]
[null,null,"Anticipated range of total legal expense to litigate this action",null,null,null,null,null,null,null,null,null,null,null,null,null,null,"$",0,null,null,null,"to","$",0]
[]
["VIII.","ASSETS"]
[null,"INSTRUCTIONS: If additional space is needed for any answer or to disclose additional assets not listed below, please attach additional pages."]
[]
["A.","REAL ESTATE"]
[null,null,"Real Estate - Primary Residence"]
[null,null,"Address"]
[null,null,null,null,null,"(Street address)",null,null,null,null,null,null,null,null,null,null,null,"(City/Town)",null,null,null,null,null,null,"(State)"]
[null,null,"Title held in name of"]
[null,null,"Purchase Price of the Property",null,null,null,null,null,null,null,null,null,"$",0]
[null,null,"Year of Purchase"]
[null,null,"Current Assessed Value of the Property",null,null,null,null,null,null,null,null,null,"$",0]
[null,null,"Date of Last Assessment"]
[null,null,"Fair Market Value of the Property",null,null,null,null,null,null,null,null,null,null,null,null,null,null,null,null,null,null,null,null,"$",0]
[null,null,"Outstanding 1st mortgage",null,null,null,null,null,null,null,null,null,null,null,null,null,null,null,null,null,null,null,"-","$",0]
[null,null,"Outstanding 2nd mortgage or home equity loan",null,null,null,null,null,null,null,null,null,null,null,null,null,null,null,null,null,null,null,"-","$",0]
[null,null,"Equity",null,null,null,null,null,null,null,null,null,null,null,null,null,null,null,null,null,null,null,"=","$",{"$f":"Y39-Y40-Y41","v":0}]
["CJ-D 301 L 9/15/17",null,null,null,null,null,null,null,null,null,null,null,"Page 4 of 9",null,null,null,null,null,null,null,"C.G.F."]

{"sheet":"Page 5","index":4,"n_rows":45,"n_cols":25,"rows_kept":45,"cut":false,"hidden":false,"merged":[[8,24,8,27],[10,13,10,16],[6,2,6,19],[6,20,6,27],[10,17,10,27],[7,2,7,4],[7,24,7,27],[7,5,7,15],[10,2,10,11],[8,5,8,15],[8,2,8,4],[9,7,9,27],[19,1,20,18],[13,2,13,11],[13,12,13,16],[13,17,13,27],[14,2,14,11],[15,2,15,8],[16,24,16,27],[17,24,17,27],[11,2,11,11],[11,12,11,16],[11,17,11,27],[12,2,12,11],[12,13,12,16],[12,17,12,27],[21,1,21,2],[22,1,22,2],[23,1,23,2],[21,3,21,12],[22,3,22,12],[23,3,23,12],[32,1,32,2],[32,3,32,12],[24,9,24,12],[25,6,25,12],[30,1,30,2],[30,3,30,12],[26,1,26,5],[24,1,24,7],[25,1,25,5],[28,24,28,27],[27,1,27,5],[28,1,28,2],[31,1,31,2],[31,3,31,12],[36,1,36,5],[36,24,36,27],[5,0,5,27],[7,17,7,22],[34,1,34,5],[34,6,34,12],[14,24,14,27],[15,24,15,27],[8,17,8,22],[9,2,9,6],[35,1,35,5],[35,24,35,27],[33,1,33,7],[33,9,33,12],[26,24,26,27],[27,24,27,27],[41,0,41,5],[41,23,41,27],[40,22,40,27],[40,6,40,11],[40,12,40,16],[40,17,40,21],[41,12,41,16],[0,0,0,27],[1,0,1,2],[1,3,1,7],[1,23,1,27],[1,20,1,22],[1,8,1,19],[44,0,44,3],[44,20,44,28],[44,12,44,16],[2,0,2,27],[3,0,3,27],[4,0,4,27],[42,0,42,5],[42,23,42,27],[41,6,41,11],[42,6,42,11],[42,12,42,16],[41,17,41,21],[42,17,42,21],[37,1,37,2],[37,24,37,27],[39,1,39,4]]}
["Commonwealth of Massachusetts"]
["Division",null,null,{"$f":"'Page 1'!D2","v":0},null,null,null,null,"The Trial Court",null,null,null,null,null,null,null,null,null,null,null,"Docket No.",null,null,{"$f":"'Page 1'!X2","v":0}]
["Probate and Family Court Department"]
["FINANCIAL STATEMENT"]
["(Long Form)"]
[]
[null,null,"Real Estate - Vacation or Second Home (including interest in time share)"]
[null,null,"Address"]
[null,null,null,null,null,"(Street address)",null,null,null,null,null,null,null,null,null,null,null,"(City/Town)",null,null,null,null,null,null,"(State)"]
[null,null,"Title held in name of"]
[null,null,"Purchase Price of the Property",null,null,null,null,null,null,null,null,null,"$",0]
[null,null,"Year of Purchase"]
[null,null,"Current Assessed Value of the Property",null,null,null,null,null,null,null,null,null,"$",0]
[null,null,"Date of Last Assessment"]
[null,null,"Fair Market Value of the Property",null,null,null,null,null,null,null,null,null,null,null,null,null,null,null,null,null,null,null,null,"$",0]
[null,null,"Outstanding 1st mortgage",null,null,null,null,null,null,null,null,null,null,null,null,null,null,null,null,null,null,null,"-","$",0]
[null,null,"Outstanding 2nd mortgage or home equity loan",null,null,null,null,null,null,null,null,null,null,null,null,null,null,null,null,null,null,null,"-","$",0]
[null,null,"Equity",null,null,null,null,null,null,null,null,null,null,null,null,null,null,null,null,null,null,null,"=","$",{"$f":"Y15-Y16-Y17","v":0}]
[]
["B.","MOTOR VEHICLES including cars, trucks, ATVs, snowmobiles, tractors, motorcycles, boats, recreational vehicles, aircraft, farm machinery, etc."]
[]
[null,"Type"]
[null,"Make"]
[null,"Model"]
[null,"Purchase Price of Vehicle",null,null,null,null,null,null,"$",0]
[null,"Year of Purchase"]
[null,"Fair Market Value",null,null,null,null,null,null,null,null,null,null,null,null,null,null,null,null,null,null,null,null,null,"$",0]
[null,"Outstanding Loan(s)",null,null,null,null,null,null,null,null,null,null,null,null,null,null,null,null,null,null,null,null,"-","$",0]
[null,"Equity",null,null,null,null,null,null,null,null,null,null,null,null,null,null,null,null,null,null,null,null,"=","$",{"$f":"Y27-Y28","v":0}]
[]
[null,"Type"]
[null,"Make"]
[null,"Model"]
[null,"Purchase Price of Vehicle",null,null,null,null,null,null,"$",0]
[null,"Year of Purchase"]
[null,"Fair Market Value",null,null,null,null,null,null,null,null,null,null,null,null,null,null,null,null,null,null,null,null,null,"$",0]
[null,"Outstanding Loan(s)",null,null,null,null,null,null,null,null,null,null,null,null,null,null,null,null,null,null,null,null,"-","$",0]
[null,"Equity",null,null,null,null,null,null,null,null,null,null,null,null,null,null,null,null,null,null,null,null,"=","$",{"$f":"Y36-Y37","v":0}]
[]
["C.","PENSIONS"]
[null,null,null,null,null,null,"Institution",null,null,null,null,null,"Account Number",null,null,null,null,"Listed Beneficiary",null,null,null,null,"Current Balance / Value"]
["Defined Benefit Plan",null,null,null,null,null,null,null,null,null,null,null,null,null,null,null,null,null,null,null,null,null,"$",0]
["Defined Contribution Plan",null,null,null,null,null,null,null,null,null,null,null,null,null,null,null,null,null,null,null,null,null,"$",0]
[]
["CJ-D 301 L 9/15/17",null,null,null,null,null,null,null,null,null,null,null,"Page 5 of 9",null,null,null,null,null,null,null,"C.G.F."]

{"sheet":"Page 6","index":5,"n_rows":43,"n_cols":24,"rows_kept":43,"cut":false,"hidden":false,"merged":[[17,0,18,5],[17,6,17,11],[17,12,17,16],[30,6,30,11],[30,12,30,16],[29,12,29,16],[32,6,32,11],[32,12,32,16],[32,17,32,21],[20,6,20,11],[20,12,20,16],[32,23,32,27],[14,0,14,5],[14,6,14,11],[14,12,14,16],[14,17,14,21],[29,0,30,5],[29,6,29,11],[30,17,30,21],[21,17,21,21],[19,6,19,11],[19,12,19,16],[27,0,28,5],[27,6,27,11],[27,12,27,16],[28,6,28,11],[28,12,28,16],[22,6,22,11],[22,12,22,16],[21,23,21,27],[22,17,22,21],[22,23,22,27],[20,17,20,21],[20,23,20,27],[19,17,19,21],[19,23,19,27],[17,23,17,27],[18,17,18,21],[18,23,18,27],[17,17,17,21],[16,6,16,11],[16,12,16,16],[16,17,16,21],[16,23,16,27],[18,6,18,11],[18,12,18,16],[15,0,16,5],[15,6,15,11],[15,12,15,16],[15,17,15,21],[10,12,10,16],[10,17,10,21],[10,23,10,27],[11,6,11,11],[11,17,11,21],[11,23,11,27],[11,12,11,16],[10,0,11,5],[12,17,12,21],[12,23,12,27],[13,12,13,16],[13,17,13,21],[13,23,13,27],[14,23,14,27],[15,23,15,27],[42,0,42,3],[42,20,42,28],[42,12,42,16],[31,0,32,5],[31,6,31,11],[31,12,31,16],[25,0,26,5],[25,6,25,11],[25,12,25,16],[26,6,26,11],[26,12,26,16],[31,17,31,21],[31,23,31,27],[26,17,26,21],[26,23,26,27],[27,23,27,27],[25,17,25,21],[25,23,25,27],[29,17,29,21],[28,17,28,21],[28,23,28,27],[27,17,27,21],[30,23,30,27],[29,23,29,27],[2,0,2,27],[3,0,3,27],[4,0,4,27],[0,0,0,27],[1,0,1,2],[1,3,1,7],[1,23,1,27],[1,20,1,22],[1,8,1,19],[5,0,5,27],[6,1,7,27],[9,6,9,11],[9,12,9,16],[9,17,9,21],[9,22,9,27],[23,23,23,27],[24,6,24,11],[24,12,24,16],[24,17,24,21],[24,23,24,27],[23,0,24,5],[23,6,23,11],[23,12,23,16],[23,17,23,21],[10,6,10,11],[12,0,13,5],[12,6,12,11],[13,6,13,11],[19,0,20,5],[21,0,22,5],[21,6,21,11],[21,12,21,16],[12,12,12,16]]}
["Commonwealth of Massachusetts"]
["Division",null,null,{"$f":"'Page 1'!D2","v":0},null,null,null,null,"The Trial Court",null,null,null,null,null,null,null,null,null,null,null,"Docket No.",null,null,{"$f":"'Page 1'!X2","v":0}]
["Probate and Family Court Department"]
["FINANCIAL STATEMENT"]
["(Long Form)"]
[]
["D.","OTHER ASSETS. List assets which are held individually, jointly, in the name of another person for your benefit, or held by you for the benefit of your minor child(ren)."]
[]
[]
[null,null,null,null,null,null,"Institution",null,null,null,null,null,"Account Number",null,null,null,null,"Listed Beneficiary",null,null,null,null,"Current Balance / Value"]
["Checking Account(s)",null,null,null,null,null,null,null,null,null,null,null,null,null,null,null,null,null,null,null,null,null,"$",0]
[null,null,null,null,null,null,null,null,null,null,null,null,null,null,null,null,null,null,null,null,null,null,"$",0]
["Savings Account(s)",null,null,null,null,null,null,null,null,null,null,null,null,null,null,null,null,null,null,null,null,null,"$",0]
[null,null,null,null,null,null,null,null,null,null,null,null,null,null,null,null,null,null,null,null,null,null,"$",0]
["Cash on Hand",null,null,null,null,null,null,null,null,null,null,null,null,null,null,null,null,null,null,null,null,null,"$",0]
["Certificate(s) of Deposit",null,null,null,null,null,null,null,null,null,null,null,null,null,null,null,null,null,null,null,null,null,"$",0]
[null,null,null,null,null,null,null,null,null,null,null,null,null,null,null,null,null,null,null,null,null,null,"$",0]
["Credit Union Account(s)",null,null,null,null,null,null,null,null,null,null,null,null,null,null,null,null,null,null,null,null,null,"$",0]
[null,null,null,null,null,null,null,null,null,null,null,null,null,null,null,null,null,null,null,null,null,null,"$",0]
["Funds Held in Escrow",null,null,null,null,null,null,null,null,null,null,null,null,null,null,null,null,null,null,null,null,null,"$",0]
[null,null,null,null,null,null,null,null,null,null,null,null,null,null,null,null,null,null,null,null,null,null,"$",0]
["Stocks",null,null,null,null,null,null,null,null,null,null,null,null,null,null,null,null,null,null,null,null,null,"$",0]
[null,null,null,null,null,null,null,null,null,null,null,null,null,null,null,null,null,null,null,null,null,null,"$",0]
["Bonds",null,null,null,null,null,null,null,null,null,null,null,null,null,null,null,null,null,null,null,null,null,"$",0]
[null,null,null,null,null,null,null,null,null,null,null,null,null,null,null,null,null,null,null,null,null,null,"$",0]
["Bond Fund(s)",null,null,null,null,null,null,null,null,null,null,null,null,null,null,null,null,null,null,null,null,null,"$",0]
[null,null,null,null,null,null,null,null,null,null,null,null,null,null,null,null,null,null,null,null,null,null,"$",0]
["Notes Held",null,null,null,null,null,null,null,null,null,null,null,null,null,null,null,null,null,null,null,null,null,"$",0]
[null,null,null,null,null,null,null,null,null,null,null,null,null,null,null,null,null,null,null,null,null,null,"$",0]
["Cash in Brokerage Account(s)",null,null,null,null,null,null,null,null,null,null,null,null,null,null,null,null,null,null,null,null,null,"$",0]
[null,null,null,null,null,null,null,null,null,null,null,null,null,null,null,null,null,null,null,null,null,null,"$",0]
["Money Market Account(s)",null,null,null,null,null,null,null,null,null,null,null,null,null,null,null,null,null,null,null,null,null,"$",0]
[null,null,null,null,null,null,null,null,null,null,null,null,null,null,null,null,null,null,null,null,null,null,"$",0]
[]
[]
[]
[]
[]
[]
[]
[]
[]
["CJ-D 301 L 9/15/17",null,null,null,null,null,null,null,null,null,null,null,"Page 6 of 9",null,null,null,null,null,null,null,"C.G.F."]

{"sheet":"Page 7","index":6,"n_rows":42,"n_cols":24,"rows_kept":42,"cut":false,"hidden":false,"merged":[[41,0,41,3],[41,12,41,16],[41,20,41,28],[40,23,40,27],[40,0,40,20],[35,28,36,28],[37,28,38,28],[37,22,38,22],[37,23,38,27],[35,23,36,27],[38,0,38,5],[33,23,33,27],[37,12,38,16],[37,17,38,21],[35,6,36,11],[35,12,36,16],[35,17,36,21],[35,22,36,22],[34,23,34,27],[37,6,38,11],[34,0,34,5],[34,6,34,11],[34,12,34,16],[34,17,34,21],[35,0,35,5],[36,0,36,5],[37,0,37,5],[33,0,33,5],[33,6,33,11],[33,12,33,16],[33,17,33,21],[31,23,31,27],[32,0,32,5],[32,6,32,11],[32,12,32,16],[32,17,32,21],[32,23,32,27],[31,0,31,5],[31,6,31,11],[31,12,31,16],[31,17,31,21],[19,0,20,5],[16,12,16,16],[16,17,16,21],[17,17,17,21],[29,23,29,27],[28,6,28,11],[28,12,28,16],[15,0,16,5],[15,23,15,27],[29,0,29,5],[29,6,29,11],[29,12,29,16],[29,17,29,21],[20,23,20,27],[22,17,22,21],[22,23,22,27],[19,23,19,27],[20,17,20,21],[21,17,21,21],[25,23,25,27],[24,12,24,16],[24,17,24,21],[24,23,24,27],[25,0,26,5],[30,23,30,27],[30,0,30,5],[30,6,30,11],[30,12,30,16],[30,17,30,21],[17,0,18,5],[7,12,7,16],[17,6,17,11],[16,6,16,11],[18,6,18,11],[11,12,11,16],[12,12,12,16],[14,6,14,11],[9,6,9,11],[10,6,10,11],[8,6,8,11],[13,6,13,11],[12,6,12,11],[14,12,14,16],[11,0,12,5],[9,0,10,5],[11,6,11,11],[13,0,14,5],[12,17,12,21],[5,0,5,27],[6,6,6,11],[6,12,6,16],[6,17,6,21],[6,22,6,27],[7,0,8,5],[7,17,7,21],[7,23,7,27],[8,17,8,21],[7,6,7,11],[2,0,2,27],[3,0,3,27],[4,0,4,27],[0,0,0,27],[1,0,1,2],[1,3,1,7],[1,23,1,27],[1,20,1,22],[1,8,1,19],[12,23,12,27],[8,23,8,27],[8,12,8,16],[11,17,11,21],[11,23,11,27],[9,12,9,16],[9,17,9,21],[9,23,9,27],[10,12,10,16],[10,23,10,27],[10,17,10,21],[13,12,13,16],[13,17,13,21],[13,23,13,27],[16,23,16,27],[17,12,17,16],[23,6,23,11],[23,12,23,16],[15,6,15,11],[15,12,15,16],[15,17,15,21],[20,6,20,11],[20,12,20,16],[19,6,19,11],[19,12,19,16],[19,17,19,21],[18,12,18,16],[14,17,14,21],[14,23,14,27],[17,23,17,27],[18,17,18,21],[18,23,18,27],[23,17,23,21],[23,23,23,27],[21,23,21,27],[25,6,25,11],[25,12,25,16],[25,17,25,21],[26,12,26,16],[26,6,26,11],[26,17,26,21],[24,6,24,11],[21,0,22,5],[21,6,21,11],[22,6,22,11],[22,12,22,16],[21,12,21,16],[23,0,24,5],[27,23,27,27],[27,0,27,5],[27,6,27,11],[27,12,27,16],[27,17,27,21],[28,0,28,5],[28,17,28,21],[28,23,28,27],[26,23,26,27]]}
["Commonwealth of Massachusetts"]
["Division",null,null,{"$f":"'Page 1'!D2","v":0},null,null,null,null,"The Trial Court",null,null,null,null,null,null,null,null,null,null,null,"Docket No.",null,null,{"$f":"'Page 1'!X2","v":0}]
["Probate and Family Court Department"]
["FINANCIAL STATEMENT"]
["(Long Form)"]
[]
[null,null,null,null,null,null,"Institution",null,null,null,null,null,"Account Number",null,null,null,null,"Listed Beneficiary",null,null,null,null,"Current Balance / Value"]
["U.S. Savings Bond(s)",null,null,null,null,null,null,null,null,null,null,null,null,null,null,null,null,null,null,null,null,null,"$",0]
[null,null,null,null,null,null,null,null,null,null,null,null,null,null,null,null,null,null,null,null,null,null,"$",0]
["IRAs",null,null,null,null,null,null,null,null,null,null,null,null,null,null,null,null,null,null,null,null,null,"$",0]
[null,null,null,null,null,null,null,null,null,null,null,null,null,null,null,null,null,null,null,null,null,null,"$",0]
["Keough",null,null,null,null,null,null,null,null,null,null,null,null,null,null,null,null,null,null,null,null,null,"$",0]
[null,null,null,null,null,null,null,null,null,null,null,null,null,null,null,null,null,null,null,null,null,null,"$",0]
["Profit Sharing",null,null,null,null,null,null,null,null,null,null,null,null,null,null,null,null,null,null,null,null,null,"$",0]
[null,null,null,null,null,null,null,null,null,null,null,null,null,null,null,null,null,null,null,null,null,null,"$",0]
["Deferred Compensation",null,null,null,null,null,null,null,null,null,null,null,null,null,null,null,null,null,null,null,null,null,"$",0]
[null,null,null,null,null,null,null,null,null,null,null,null,null,null,null,null,null,null,null,null,null,null,"$",0]
["Other Retirement Plans",null,null,null,null,null,null,null,null,null,null,null,null,null,null,null,null,null,null,null,null,null,"$",0]
[null,null,null,null,null,null,null,null,null,null,null,null,null,null,null,null,null,null,null,null,null,null,"$",0]
["Annuity (please specify whether a tax deferred annuity or a tax sheltered annuity)",null,null,null,null,null,null,null,null,null,null,null,null,null,null,null,null,null,null,null,null,null,"$",0]
[null,null,null,null,null,null,null,null,null,null,null,null,null,null,null,null,null,null,null,null,null,null,"$",0]
["Life Insurance Cash Value (please specify whether a term or a whole universal life insurance policy)",null,null,null,null,null,null,null,null,null,null,null,null,null,null,null,null,null,null,null,null,null,"$",0]
[null,null,null,null,null,null,null,null,null,null,null,null,null,null,null,null,null,null,null,null,null,null,"$",0]
["Judgments/Liens",null,null,null,null,null,null,null,null,null,null,null,null,null,null,null,null,null,null,null,null,null,"$",0]
[null,null,null,null,null,null,null,null,null,null,null,null,null,null,null,null,null,null,null,null,null,null,"$",0]
["Pending Legacies and/or Inheritances",null,null,null,null,null,null,null,null,null,null,null,null,null,null,null,null,null,null,null,null,null,"$",0]
[null,null,null,null,null,null,null,null,null,null,null,null,null,null,null,null,null,null,null,null,null,null,"$",0]
["Jewelry",null,null,null,null,null,null,null,null,null,null,null,null,null,null,null,null,null,null,null,null,null,"$",0]
["Contents of Safe or Safe Deposit Box",null,null,null,null,null,null,null,null,null,null,null,null,null,null,null,null,null,null,null,null,null,"$",0]
["Firearms",null,null,null,null,null,null,null,null,null,null,null,null,null,null,null,null,null,null,null,null,null,"$",0]
["Collections",null,null,null,null,null,null,null,null,null,null,null,null,null,null,null,null,null,null,null,null,null,"$",0]
["Tools/Equipment",null,null,null,null,null,null,null,null,null,null,null,null,null,null,null,null,null,null,null,null,null,"$",0]
["Crops/Livestock",null,null,null,null,null,null,null,null,null,null,null,null,null,null,null,null,null,null,null,null,null,"$",0]
["Home Furnishings",null,null,null,null,null,null,null,null,null,null,null,null,null,null,null,null,null,null,null,null,null,"$",0]
["Arts and Antiques",null,null,null,null,null,null,null,null,null,null,null,null,null,null,null,null,null,null,null,null,null,"$",0]
["Other (please specify)",null,null,null,null,null,null,null,null,null,null,null,null,null,null,null,null,null,null,null,null,null,"$",0]
[]
["Other (please specify)",null,null,null,null,null,null,null,null,null,null,null,null,null,null,null,null,null,null,null,null,null,"$",0]
[]
[]
["TOTAL ASSETS (INCLUDING FROM ATTACHED ADDITIONAL SCHEDULES, IF ANY)",null,null,null,null,null,null,null,null,null,null,null,null,null,null,null,null,null,null,null,null,null,"$",{"$f":"SUM('Page 6'!X11:AB33)+SUM('Page 7'!X8:AB39)+SUM('Page 4'!Y42+'Page 5'!Y18+'Page 5'!Y29+'Page 5'!Y38+'Page 5'!X42+'Page 5'!X43+'Additional Assets (Realty)'!Y16+'Additional Assets (Realty)'!Y29+'Additional Assets (Realty)'!Y42+'Additional Assets (Realty-2)'!Y16+'Additional Assets (Realty-2)'!Y29+'Additional Assets (Realty-2)'!Y42+'Additional Assets (Vehicles)'!Y14+'Additional Assets (Vehicles)'!Y23+'Additional Assets (Vehicles)'!Y32+'Additional Assets (Vehicles)'!Y41+'Additional Assets (Vehicles-2)'!Y14+'Additional Assets (Vehicles-2)'!Y23+'Additional Assets (Vehicles-2)'!Y32+'Additional Assets (Vehicles-2)'!Y41+SUM('Additional Assets (Other)'!X6:AB44))","v":0}]
["CJ-D 301 L 9/15/17",null,null,null,null,null,null,null,null,null,null,null,"Page 7 of 9",null,null,null,null,null,null,null,"C.G.F."]

{"sheet":"Page 8","index":7,"n_rows":44,"n_cols":25,"rows_kept":44,"cut":false,"hidden":false,"merged":[[43,0,43,3],[43,12,43,16],[43,20,43,28],[40,0,41,11],[40,23,41,23],[40,24,41,27],[40,17,41,17],[40,18,41,22],[33,17,34,17],[33,18,34,22],[33,23,34,23],[33,24,34,27],[33,0,34,5],[33,6,34,11],[37,18,38,22],[35,18,36,22],[35,17,36,17],[35,12,36,16],[37,0,38,5],[37,6,38,11],[37,28,38,28],[35,23,36,23],[35,24,36,27],[35,28,36,28],[31,0,32,5],[31,6,32,11],[37,23,38,23],[37,24,38,27],[37,12,38,16],[37,17,38,17],[35,0,36,5],[35,6,36,11],[33,12,34,16],[31,17,32,17],[31,18,32,22],[31,12,32,16],[27,28,28,28],[29,28,30,28],[29,17,30,17],[27,17,28,17],[31,24,32,27],[31,28,32,28],[31,23,32,23],[27,24,28,27],[21,23,22,23],[21,24,22,27],[21,28,22,28],[23,23,24,23],[23,24,24,27],[29,23,30,23],[29,24,30,27],[25,23,26,23],[23,28,24,28],[25,17,26,17],[25,18,26,22],[23,18,24,22],[25,24,26,27],[29,18,30,22],[27,23,28,23],[27,18,28,22],[15,28,16,28],[9,28,10,28],[11,23,12,23],[11,24,12,27],[11,28,12,28],[15,18,16,22],[15,23,16,23],[13,28,14,28],[19,0,20,5],[19,28,20,28],[17,28,18,28],[17,18,18,22],[17,23,18,23],[19,18,20,22],[17,24,18,27],[17,0,18,5],[17,6,18,11],[17,12,18,16],[13,12,14,16],[13,6,14,11],[11,6,12,11],[11,12,12,16],[13,17,14,17],[11,17,12,17],[21,17,22,17],[21,18,22,22],[23,12,24,16],[23,17,24,17],[23,0,24,5],[23,6,24,11],[29,0,30,5],[17,17,18,17],[15,17,16,17],[15,0,16,5],[15,6,16,11],[29,6,30,11],[29,12,30,16],[27,0,28,5],[27,6,28,11],[27,12,28,16],[25,0,26,5],[25,6,26,11],[25,12,26,16],[21,0,22,5],[21,6,22,11],[21,12,22,16],[4,0,4,27],[9,6,10,11],[8,23,8,27],[9,23,10,23],[9,24,10,27],[13,24,14,27],[15,12,16,16],[5,0,5,27],[13,0,14,5],[11,0,12,5],[9,12,10,16],[9,17,10,17],[11,18,12,22],[15,24,16,27],[33,28,34,28],[25,28,26,28],[0,0,0,27],[1,0,1,2],[1,3,1,7],[1,23,1,27],[1,20,1,22],[1,8,1,19],[13,18,14,22],[19,6,20,11],[19,12,20,16],[19,17,20,17],[13,23,14,23],[19,23,20,23],[9,0,10,5],[8,6,8,11],[8,12,8,16],[8,0,8,5],[6,1,6,26],[8,17,8,22],[9,18,10,22],[19,24,20,27],[2,0,2,27],[3,0,3,27]]}
["Commonwealth of Massachusetts"]
["Division",null,null,{"$f":"'Page 1'!D2","v":0},null,null,null,null,"The Trial Court",null,null,null,null,null,null,null,null,null,null,null,"Docket No.",null,null,{"$f":"'Page 1'!X2","v":0}]
["Probate and Family Court Department"]
["FINANCIAL STATEMENT"]
["(Long Form)"]
[]
["IX.","LIABILITIES: List loans, credit card debt, consumer debt, installment debt, etc., which are NOT listed elsewhere."]
[]
["CREDITOR",null,null,null,null,null,"NATURE OF DEBT",null,null,null,null,null,"DATE INCURRED",null,null,null,null,"AMOUNT DUE",null,null,null,null,null,"WEEKLY PAYMENT"]
[null,null,null,null,null,null,null,null,null,null,null,null,null,null,null,null,null,"$",0,null,null,null,null,"$",0]
[]
[null,null,null,null,null,null,null,null,null,null,null,null,null,null,null,null,null,"$",0,null,null,null,null,"$",0]
[]
[null,null,null,null,null,null,null,null,null,null,null,null,null,null,null,null,null,"$",0,null,null,null,null,"$",0]
[]
[null,null,null,null,null,null,null,null,null,null,null,null,null,null,null,null,null,"$",0,null,null,null,null,"$",0]
[]
[null,null,null,null,null,null,null,null,null,null,null,null,null,null,null,null,null,"$",0,null,null,null,null,"$",0]
[]
[null,null,null,null,null,null,null,null,null,null,null,null,null,null,null,null,null,"$",0,null,null,null,null,"$",0]
[]
[null,null,null,null,null,null,null,null,null,null,null,null,null,null,null,null,null,"$",0,null,null,null,null,"$",0]
[]
[null,null,null,null,null,null,null,null,null,null,null,null,null,null,null,null,null,"$",0,null,null,null,null,"$",0]
[]
[null,null,null,null,null,null,null,null,null,null,null,null,null,null,null,null,null,"$",0,null,null,null,null,"$",0]
[]
[null,null,null,null,null,null,null,null,null,null,null,null,null,null,null,null,null,"$",0,null,null,null,null,"$",0]
[]
[null,null,null,null,null,null,null,null,null,null,null,null,null,null,null,null,null,"$",0,null,null,null,null,"$",0]
[]
[null,null,null,null,null,null,null,null,null,null,null,null,null,null,null,null,null,"$",0,null,null,null,null,"$",0]
[]
[null,null,null,null,null,null,null,null,null,null,null,null,null,null,null,null,null,"$",0,null,null,null,null,"$",0]
[]
[null,null,null,null,null,null,null,null,null,null,null,null,null,null,null,null,null,"$",0,null,null,null,null,"$",0]
[]
[null,null,null,null,null,null,null,null,null,null,null,null,null,null,null,null,null,"$",0,null,null,null,null,"$",0]
[]
[]
["TOTAL LIABILITIES (INCLUDING FROM ATTACHED ADDITIONAL SCHEDULE, IF ANY)",null,null,null,null,null,null,null,null,null,null,null,null,null,null,null,null,"$",{"$f":"SUM(S10:W39)+SUM('Additional Liabilities'!S6:W41)+SUM('Additional Liabilities (2)'!S6:W41)","v":0},null,null,null,null,"$",{"$f":"SUM(Y10:AB39)+SUM('Additional Liabilities'!Y6:AB41)+SUM('Additional Liabilities (2)'!Y6:AB41)","v":0}]
[]
[]
["CJ-D 301 L 9/15/17",null,null,null,null,null,null,null,null,null,null,null,"Page 8 of 9",null,null,null,null,null,null,null,"C.G.F."]

{"sheet":"Page 9","index":8,"n_rows":50,"n_cols":26,"rows_kept":50,"cut":false,"hidden":false,"merged":[[6,0,6,27],[8,0,9,27],[11,0,11,12],[12,0,12,12],[11,15,11,27],[12,15,12,27],[14,0,14,27],[16,0,16,2],[16,3,16,15],[18,24,18,27],[18,11,18,23],[18,2,18,10],[39,15,39,27],[20,0,20,10],[20,11,20,15],[20,16,20,17],[20,18,20,23],[20,25,20,27],[36,15,36,27],[22,15,22,27],[23,15,23,27],[25,12,25,17],[25,18,25,27],[2,0,2,27],[3,0,3,27],[4,0,4,27],[0,0,0,27],[1,0,1,2],[1,3,1,7],[1,23,1,27],[1,20,1,22],[1,8,1,19],[5,0,5,27],[41,15,41,27],[42,25,42,27],[43,25,43,27],[42,21,42,23],[43,21,43,23],[42,15,42,19],[43,15,43,19],[37,15,37,27],[38,15,38,27],[40,15,40,27],[27,4,28,23],[30,0,30,27],[32,0,34,27],[36,0,36,1],[36,2,36,9],[49,0,49,3],[49,12,49,16],[49,20,49,28],[45,18,45,27],[45,15,45,17],[47,15,47,17],[47,18,47,27]]}
["Commonwealth of Massachusetts"]
["Division",null,null,{"$f":"'Page 1'!D2","v":0},null,null,null,null,"The Trial Court",null,null,null,null,null,null,null,null,null,null,null,"Docket No.",null,null,{"$f":"'Page 1'!X2","v":0}]
["Probate and Family Court Department"]
["FINANCIAL STATEMENT"]
["(Long Form)"]
[]
["CERTIFICATION BY AFFIANT"]
[]
["I certify under the penalties of perjury that the information stated on this Financial Statement and the attached Schedules, if any, is complete, true, and accurate. I UNDERSTAND THAT WILLFUL MISREPRESENTATION OF ANY OF THE INFORMATION PROVIDED WILL SUBJECT ME TO SANCTIONS AND MAY RESULT IN CRIMINAL CHARGES BEING FILED AGAINST ME."]
[]
[]
[]
["Date",null,null,null,null,null,null,null,null,null,null,null,null,null,null,"Signature"]
[]
["COMMONWEALTH OF MASSACHUSETTS"]
[]
["County of"]
[]
[null,null,"Then personally appeared the above",null,null,null,null,null,null,null,null,null,null,null,null,null,null,null,null,null,null,null,null,null,"and declared the"]
[]
["foregoing to be true and correct, before me this",null,null,null,null,null,null,null,null,null,null,null,null,null,null,null,"day of",null,null,null,null,null,null,null,","]
[]
[]
[null,null,null,null,null,null,null,null,null,null,null,null,null,null,null,"Notary Public"]
[]
[null,null,null,null,null,null,null,null,null,null,null,null,"My Commission Expires:"]
[]
[null,null,null,null,"INSTRUCTIONS: In any case where an attorney is appearing for a party, said attorney MUST complete the Statement by Attorney."]
[]
[]
["STATEMENT BY ATTORNEY"]
[]
["I, the undersigned, attorney, am admitted to practice law in the Commonwealth of Massachusetts - am admitted pro hoc vice for the purposes of this case - and am an officer of the court. As the attorney for the party on whose behalf this Financial Statement is submitted, I hereby state to the court that I have no knowledge that any of the information contained herein is false."]
[]
[]
[]
["Date"]
[null,null,null,null,null,null,null,null,null,null,null,null,null,null,null,"(Signature of Attorney)"]
[]
[null,null,null,null,null,null,null,null,null,null,null,null,null,null,null,"(Print name)"]
[]
[null,null,null,null,null,null,null,null,null,null,null,null,null,null,null,"(Street address)"]
[]
[null,null,null,null,null,null,null,null,null,null,null,null,null,null,null,"(City/Town)",null,null,null,null,null,"(State)",null,null,null,"(Zip)"]
[]
[null,null,null,null,null,null,null,null,null,null,null,null,null,null,null,"Telephone:"]
[]
[null,null,null,null,null,null,null,null,null,null,null,null,null,null,null,"B.B.O. #:"]
[]
["CJ-D 301 L 9/15/17",null,null,null,null,null,null,null,null,null,null,null,"Page 9 of 9",null,null,null,null,null,null,null,"c.g.f."]

{"sheet":"Additional Weekly Income","index":9,"n_rows":36,"n_cols":8,"rows_kept":36,"cut":false,"hidden":false,"merged":[[9,1,9,4],[10,1,10,4],[15,1,15,4],[16,1,16,4],[17,1,17,4],[0,0,0,8],[2,0,2,1],[2,2,2,3],[4,1,4,7],[2,6,2,7],[6,0,6,4],[11,1,11,4],[12,1,12,4],[14,1,14,4],[34,2,34,5],[32,1,32,4],[22,1,22,4],[23,1,23,4],[24,1,24,4],[19,1,19,4],[20,1,20,4],[21,1,21,4],[7,1,7,4],[8,1,8,4],[13,1,13,4],[18,1,18,4],[35,5,35,7],[31,1,31,4],[30,1,30,4],[25,1,25,4],[28,1,28,4],[29,1,29,4],[26,1,26,4],[27,1,27,4]]}
["ADDITIONAL GROSS WEEKLY INCOME / RECEIPTS - LONG FORM  (Part II., continued)"]
[]
["Name:",null,{"$f":"'Page 1'!E14","v":0},null,null,"Docket No.   ",{"$f":"'Page 1'!X2","v":0}]
[]
["II.","GROSS WEEKLY INCOME / RECEIPTS FROM ALL SOURCES (continued)"]
[]
["SOURCE",null,null,null,null,null,null,"AMOUNT"]
["a.",null,null,null,null,null,"$"]
["b.",null,null,null,null,null,"$"]
["c.",null,null,null,null,null,"$"]
["d.",null,null,null,null,null,"$"]
["e.",null,null,null,null,null,"$"]
["f.",null,null,null,null,null,"$"]
["g.",null,null,null,null,null,"$"]
["h.",null,null,null,null,null,"$"]
["I.",null,null,null,null,null,"$"]
["j.",null,null,null,null,null,"$"]
["k.",null,null,null,null,null,"$"]
["l.",null,null,null,null,null,"$"]
["m.",null,null,null,null,null,"$"]
["n.",null,null,null,null,null,"$"]
["o.",null,null,null,null,null,"$"]
["p.",null,null,null,null,null,"$"]
["q.",null,null,null,null,null,"$"]
["r.",null,null,null,null,null,"$"]
["s.",null,null,null,null,null,"$"]
["t.",null,null,null,null,null,"$"]
["u.",null,null,null,null,null,"$"]
["v.",null,null,null,null,null,"$"]
["w.",null,null,null,null,null,"$"]
["x.",null,null,null,null,null,"$"]
["y.",null,null,null,null,null,"$"]
["z.",null,null,null,null,null,"$"]
[]
[null,null,"TOTAL ADDITIONAL GROSS WEEKLY INCOME / RECEIPTS  ",null,null,null,null,{"$f":"SUM(H8:H33)","v":0}]
[null,null,null,null,null,"c.g.f."]

{"sheet":"Additional Weekly Expenses","index":10,"n_rows":37,"n_cols":8,"rows_kept":37,"cut":false,"hidden":false,"merged":[[0,0,0,8],[6,0,6,3],[2,0,2,1],[2,2,2,3],[2,6,2,7],[7,1,7,4],[15,1,15,4],[36,5,36,8],[19,1,19,4],[31,1,31,4],[22,1,22,4],[23,1,23,4],[32,1,32,4],[24,1,24,4],[29,1,29,4],[34,2,34,5],[28,1,28,4],[30,1,30,4],[25,1,25,4],[16,1,16,4],[17,1,17,4],[27,1,27,4],[21,1,21,4],[20,1,20,4],[26,1,26,4],[8,1,8,4],[9,1,9,4],[18,1,18,4],[10,1,10,4],[14,1,14,4],[13,1,13,4],[11,1,11,4],[12,1,12,4]]}
["ADDITIONAL WEEKLY EXPENSES - LONG FORM  (Section VI., continued)"]
[]
["Name:",null,{"$f":"'Page 1'!E14","v":0},null,null,"Docket No.   ",{"$f":"'Page 1'!X2","v":0}]
[]
["VI.","WEEKLY EXPENSES (continued)"]
[]
["ITEM / DESCRIPTION",null,null,null,null,null,null,"AMOUNT"]
["a)",null,null,null,null,null,"$"]
["b)",null,null,null,null,null,"$"]
["c)",null,null,null,null,null,"$"]
["d)",null,null,null,null,null,"$"]
["e)",null,null,null,null,null,"$"]
["f)",null,null,null,null,null,"$"]
["g)",null,null,null,null,null,"$"]
["h)",null,null,null,null,null,"$"]
["i)",null,null,null,null,null,"$"]
["j)",null,null,null,null,null,"$"]
["k)",null,null,null,null,null,"$"]
["l)",null,null,null,null,null,"$"]
["m)",null,null,null,null,null,"$"]
["n)",null,null,null,null,null,"$"]
["o)",null,null,null,null,null,"$"]
["p)",null,null,null,null,null,"$"]
["q)",null,null,null,null,null,"$"]
["r)",null,null,null,null,null,"$"]
["s)",null,null,null,null,null,"$"]
["t)",null,null,null,null,null,"$"]
["u)",null,null,null,null,null,"$"]
["v)",null,null,null,null,null,"$"]
["w)",null,null,null,null,null,"$"]
["x)",null,null,null,null,null,"$"]
["y)",null,null,null,null,null,"$"]
["z)",null,null,null,null,null,"$"]
[]
[null,null,"TOTAL ADDITIONAL WEEKLY EXPENSES     ",null,null,null,null,{"$f":"SUM(H8:H33)","v":0}]
[]
[null,null,null,null,null,"c.g.f."]

{"sheet":"Additional Assets (Realty)","index":11,"n_rows":44,"n_cols":25,"rows_kept":44,"cut":false,"hidden":false,"merged":[[37,2,37,11],[37,12,37,16],[37,17,37,27],[38,2,38,11],[38,24,38,27],[43,22,43,28],[39,2,39,8],[39,24,39,27],[40,24,40,27],[41,24,41,27],[35,2,35,11],[35,12,35,16],[35,17,35,27],[36,2,36,11],[36,13,36,16],[36,17,36,27],[32,5,32,15],[32,17,32,22],[32,24,32,27],[34,2,34,11],[34,13,34,16],[34,17,34,27],[33,2,33,6],[33,7,33,27],[32,2,32,4],[28,24,28,27],[30,2,30,7],[30,8,30,21],[31,2,31,4],[31,5,31,15],[31,17,31,22],[31,24,31,27],[27,24,27,27],[25,24,25,27],[24,2,24,11],[24,12,24,16],[24,17,24,27],[25,2,25,11],[22,2,22,11],[22,12,22,16],[22,17,22,27],[26,2,26,8],[26,24,26,27],[23,2,23,11],[23,13,23,16],[23,17,23,27],[21,2,21,11],[21,13,21,16],[21,17,21,27],[15,24,15,27],[19,2,19,4],[19,5,19,15],[19,17,19,22],[18,24,18,27],[17,8,17,21],[20,2,20,6],[20,7,20,27],[19,24,19,27],[18,2,18,4],[18,5,18,15],[18,17,18,22],[17,2,17,7],[14,24,14,27],[12,2,12,11],[13,2,13,8],[12,24,12,27],[13,24,13,27],[7,2,7,6],[7,7,7,27],[8,13,8,16],[11,17,11,27],[10,2,10,11],[9,2,9,11],[8,17,8,27],[11,12,11,16],[10,13,10,16],[8,2,8,11],[9,17,9,27],[11,2,11,11],[10,17,10,27],[9,12,9,16],[0,0,0,27],[4,8,4,21],[4,2,4,7],[6,2,6,4],[5,17,5,22],[5,24,5,27],[2,0,2,1],[5,2,5,4],[2,21,2,27],[2,18,2,20],[2,2,2,12],[5,5,5,15],[6,5,6,15],[6,17,6,22],[6,24,6,27]]}
["ADDITIONAL ASSETS (REALTY) - LONG FORM  (Section VIII., continued)"]
[]
["Name:",null,{"$f":"'Page 1'!E14","v":0},null,null,null,null,null,null,null,null,null,null,null,null,null,null,null,"Docket No.",null,null,{"$f":"'Page 1'!X2","v":0}]
[]
[null,null,"Real Estate - Other"]
[null,null,"Address"]
[null,null,null,null,null,"(Street address)",null,null,null,null,null,null,null,null,null,null,null,"(City / Town)",null,null,null,null,null,null,"(State)"]
[null,null,"Title held in name of"]
[null,null,"Purchase Price of the Property",null,null,null,null,null,null,null,null,null,"$",0]
[null,null,"Year of Purchase"]
[null,null,"Current Assessed Value of the Property",null,null,null,null,null,null,null,null,null,"$",0]
[null,null,"Date of Last Assessment"]
[null,null,"Fair Market Value of the Property",null,null,null,null,null,null,null,null,null,null,null,null,null,null,null,null,null,null,null,null,"$",0]
[null,null,"Outstanding 1st mortgage",null,null,null,null,null,null,null,null,null,null,null,null,null,null,null,null,null,null,null,"-","$",0]
[null,null,"Outstanding 2nd mortgage or home equity loan",null,null,null,null,null,null,null,null,null,null,null,null,null,null,null,null,null,null,null,"-","$",0]
[null,null,"Equity",null,null,null,null,null,null,null,null,null,null,null,null,null,null,null,null,null,null,null,"=","$",{"$f":"Y13-Y14-Y15","v":0}]
[]
[null,null,"Real Estate - Other"]
[null,null,"Address"]
[null,null,null,null,null,"(Street address)",null,null,null,null,null,null,null,null,null,null,null,"(City / Town)",null,null,null,null,null,null,"(State)"]
[null,null,"Title held in name of"]
[null,null,"Purchase Price of the Property",null,null,null,null,null,null,null,null,null,"$",0]
[null,null,"Year of Purchase"]
[null,null,"Current Assessed Value of the Property",null,null,null,null,null,null,null,null,null,"$",0]
[null,null,"Date of Last Assessment"]
[null,null,"Fair Market Value of the Property",null,null,null,null,null,null,null,null,null,null,null,null,null,null,null,null,null,null,null,null,"$",0]
[null,null,"Outstanding 1st mortgage",null,null,null,null,null,null,null,null,null,null,null,null,null,null,null,null,null,null,null,"-","$",0]
[null,null,"Outstanding 2nd mortgage or home equity loan",null,null,null,null,null,null,null,null,null,null,null,null,null,null,null,null,null,null,null,"-","$",0]
[null,null,"Equity",null,null,null,null,null,null,null,null,null,null,null,null,null,null,null,null,null,null,null,"=","$",{"$f":"Y26-Y27-Y28","v":0}]
[]
[null,null,"Real Estate - Other"]
[null,null,"Address"]
[null,null,null,null,null,"(Street address)",null,null,null,null,null,null,null,null,null,null,null,"(City / Town)",null,null,null,null,null,null,"(State)"]
[null,null,"Title held in name of"]
[null,null,"Purchase Price of the Property",null,null,null,null,null,null,null,null,null,"$",0]
[null,null,"Year of Purchase"]
[null,null,"Current Assessed Value of the Property",null,null,null,null,null,null,null,null,null,"$",0]
[null,null,"Date of Last Assessment"]
[null,null,"Fair Market Value of the Property",null,null,null,null,null,null,null,null,null,null,null,null,null,null,null,null,null,null,null,null,"$",0]
[null,null,"Outstanding 1st mortgage",null,null,null,null,null,null,null,null,null,null,null,null,null,null,null,null,null,null,null,"-","$",0]
[null,null,"Outstanding 2nd mortgage or home equity loan",null,null,null,null,null,null,null,null,null,null,null,null,null,null,null,null,null,null,null,"-","$",0]
[null,null,"Equity",null,null,null,null,null,null,null,null,null,null,null,null,null,null,null,null,null,null,null,"=","$",{"$f":"Y39-Y40-Y41","v":0}]
[]
[null,null,null,null,null,null,null,null,null,null,null,null,null,null,null,null,null,null,null,null,null,null,"c.g.f."]

{"sheet":"Additional Assets (Realty-2)","index":12,"n_rows":44,"n_cols":25,"rows_kept":44,"cut":false,"hidden":false,"merged":[[19,24,19,27],[5,5,5,15],[5,17,5,22],[5,24,5,27],[12,2,12,11],[8,17,8,27],[9,17,9,27],[10,2,10,11],[9,12,9,16],[13,24,13,27],[18,17,18,22],[11,17,11,27],[0,0,0,27],[4,8,4,21],[4,2,4,7],[5,2,5,4],[6,2,6,4],[6,5,6,15],[6,17,6,22],[6,24,6,27],[2,2,2,12],[2,18,2,20],[20,7,20,27],[2,0,2,1],[7,2,7,6],[19,2,19,4],[19,5,19,15],[18,2,18,4],[18,5,18,15],[9,2,9,11],[15,24,15,27],[11,2,11,11],[10,13,10,16],[10,17,10,27],[11,12,11,16],[14,24,14,27],[13,2,13,8],[2,21,2,27],[21,2,21,11],[23,2,23,11],[23,13,23,16],[23,17,23,27],[24,2,24,11],[21,13,21,16],[21,17,21,27],[27,24,27,27],[28,24,28,27],[30,2,30,7],[30,8,30,21],[26,2,26,8],[26,24,26,27],[31,2,31,4],[31,5,31,15],[31,17,31,22],[31,24,31,27],[38,2,38,11],[38,24,38,27],[37,2,37,11],[32,2,32,4],[32,5,32,15],[32,17,32,22],[36,17,36,27],[36,2,36,11],[36,13,36,16],[37,12,37,16],[37,17,37,27],[35,2,35,11],[43,22,43,28],[39,2,39,8],[39,24,39,27],[40,24,40,27],[41,24,41,27],[35,12,35,16],[35,17,35,27],[32,24,32,27],[33,2,33,6],[33,7,33,27],[34,2,34,11],[34,13,34,16],[34,17,34,27],[25,24,25,27],[8,13,8,16],[7,7,7,27],[8,2,8,11],[12,24,12,27],[20,2,20,6],[25,2,25,11],[24,12,24,16],[24,17,24,27],[19,17,19,22],[18,24,18,27],[17,2,17,7],[17,8,17,21],[22,2,22,11],[22,12,22,16],[22,17,22,27]]}
["ADDITIONAL ASSETS (REALTY) (2) - LONG FORM  (Section VIII., continued)"]
[]
["Name:",null,{"$f":"'Page 1'!E14","v":0},null,null,null,null,null,null,null,null,null,null,null,null,null,null,null,"Docket No.",null,null,{"$f":"'Page 1'!X2","v":0}]
[]
[null,null,"Real Estate - Other"]
[null,null,"Address"]
[null,null,null,null,null,"(Street address)",null,null,null,null,null,null,null,null,null,null,null,"(City / Town)",null,null,null,null,null,null,"(State)"]
[null,null,"Title held in name of"]
[null,null,"Purchase Price of the Property",null,null,null,null,null,null,null,null,null,"$",0]
[null,null,"Year of Purchase"]
[null,null,"Current Assessed Value of the Property",null,null,null,null,null,null,null,null,null,"$",0]
[null,null,"Date of Last Assessment"]
[null,null,"Fair Market Value of the Property",null,null,null,null,null,null,null,null,null,null,null,null,null,null,null,null,null,null,null,null,"$",0]
[null,null,"Outstanding 1st mortgage",null,null,null,null,null,null,null,null,null,null,null,null,null,null,null,null,null,null,null,"-","$",0]
[null,null,"Outstanding 2nd mortgage or home equity loan",null,null,null,null,null,null,null,null,null,null,null,null,null,null,null,null,null,null,null,"-","$",0]
[null,null,"Equity",null,null,null,null,null,null,null,null,null,null,null,null,null,null,null,null,null,null,null,"=","$",{"$f":"Y13-Y14-Y15","v":0}]
[]
[null,null,"Real Estate - Other"]
[null,null,"Address"]
[null,null,null,null,null,"(Street address)",null,null,null,null,null,null,null,null,null,null,null,"(City / Town)",null,null,null,null,null,null,"(State)"]
[null,null,"Title held in name of"]
[null,null,"Purchase Price of the Property",null,null,null,null,null,null,null,null,null,"$",0]
[null,null,"Year of Purchase"]
[null,null,"Current Assessed Value of the Property",null,null,null,null,null,null,null,null,null,"$",0]
[null,null,"Date of Last Assessment"]
[null,null,"Fair Market Value of the Property",null,null,null,null,null,null,null,null,null,null,null,null,null,null,null,null,null,null,null,null,"$",0]
[null,null,"Outstanding 1st mortgage",null,null,null,null,null,null,null,null,null,null,null,null,null,null,null,null,null,null,null,"-","$",0]
[null,null,"Outstanding 2nd mortgage or home equity loan",null,null,null,null,null,null,null,null,null,null,null,null,null,null,null,null,null,null,null,"-","$",0]
[null,null,"Equity",null,null,null,null,null,null,null,null,null,null,null,null,null,null,null,null,null,null,null,"=","$",{"$f":"Y26-Y27-Y28","v":0}]
[]
[null,null,"Real Estate - Other"]
[null,null,"Address"]
[null,null,null,null,null,"(Street address)",null,null,null,null,null,null,null,null,null,null,null,"(City / Town)",null,null,null,null,null,null,"(State)"]
[null,null,"Title held in name of"]
[null,null,"Purchase Price of the Property",null,null,null,null,null,null,null,null,null,"$",0]
[null,null,"Year of Purchase"]
[null,null,"Current Assessed Value of the Property",null,null,null,null,null,null,null,null,null,"$",0]
[null,null,"Date of Last Assessment"]
[null,null,"Fair Market Value of the Property",null,null,null,null,null,null,null,null,null,null,null,null,null,null,null,null,null,null,null,null,"$",0]
[null,null,"Outstanding 1st mortgage",null,null,null,null,null,null,null,null,null,null,null,null,null,null,null,null,null,null,null,"-","$",0]
[null,null,"Outstanding 2nd mortgage or home equity loan",null,null,null,null,null,null,null,null,null,null,null,null,null,null,null,null,null,null,null,"-","$",0]
[null,null,"Equity",null,null,null,null,null,null,null,null,null,null,null,null,null,null,null,null,null,null,null,"=","$",{"$f":"Y39-Y40-Y41","v":0}]
[]
[null,null,null,null,null,null,null,null,null,null,null,null,null,null,null,null,null,null,null,null,null,null,"c.g.f."]

{"sheet":"Additional Assets (Vehicles)","index":13,"n_rows":44,"n_cols":25,"rows_kept":44,"cut":false,"hidden":false,"merged":[[38,1,38,5],[38,24,38,27],[37,1,37,5],[37,6,37,12],[36,1,36,7],[30,1,30,5],[30,24,30,27],[43,22,43,28],[39,1,39,5],[39,24,39,27],[40,1,40,2],[40,24,40,27],[31,1,31,2],[31,24,31,27],[34,3,34,12],[35,1,35,2],[35,3,35,12],[33,1,33,2],[33,3,33,12],[34,1,34,2],[36,9,36,12],[21,24,21,27],[29,1,29,5],[22,24,22,27],[27,1,27,7],[27,9,27,12],[25,3,25,12],[28,1,28,5],[28,6,28,12],[26,1,26,2],[26,3,26,12],[25,1,25,2],[29,24,29,27],[0,0,0,27],[24,1,24,2],[24,3,24,12],[20,1,20,5],[20,24,20,27],[21,1,21,5],[2,0,2,1],[2,2,2,12],[2,18,2,20],[2,21,2,27],[19,1,19,5],[16,3,16,12],[17,1,17,2],[17,3,17,12],[19,6,19,12],[18,1,18,7],[18,9,18,12],[16,1,16,2],[22,1,22,2],[15,1,15,2],[15,3,15,12],[12,1,12,5],[13,1,13,2],[7,3,7,12],[11,24,11,27],[11,1,11,5],[12,24,12,27],[13,24,13,27],[9,9,9,12],[8,3,8,12],[10,6,10,12],[9,1,9,7],[10,1,10,5],[4,1,5,18],[6,1,6,2],[7,1,7,2],[8,1,8,2],[6,3,6,12]]}
["ADDITIONAL ASSETS (MOTOR VEHICLES) - LONG FORM  (Section VIII., continued)"]
[]
["Name:",null,{"$f":"'Page 1'!E14","v":0},null,null,null,null,null,null,null,null,null,null,null,null,null,null,null,"Docket No.",null,null,{"$f":"'Page 1'!X2","v":0}]
[]
[null,"MOTOR VEHICLES including cars, trucks, ATVs, snowmobiles, tractors, motorcycles, boats, recreational vehicles, aircraft, farm machinery, etc."]
[]
[null,"Type"]
[null,"Make"]
[null,"Model"]
[null,"Purchase Price of Vehicle",null,null,null,null,null,null,"$",0]
[null,"Year of Purchase"]
[null,"Fair Market Value",null,null,null,null,null,null,null,null,null,null,null,null,null,null,null,null,null,null,null,null,null,"$",0]
[null,"Outstanding Loan(s)",null,null,null,null,null,null,null,null,null,null,null,null,null,null,null,null,null,null,null,null,"-","$",0]
[null,"Equity",null,null,null,null,null,null,null,null,null,null,null,null,null,null,null,null,null,null,null,null,"=","$",{"$f":"Y12-Y13","v":0}]
[]
[null,"Type"]
[null,"Make"]
[null,"Model"]
[null,"Purchase Price of Vehicle",null,null,null,null,null,null,"$",0]
[null,"Year of Purchase"]
[null,"Fair Market Value",null,null,null,null,null,null,null,null,null,null,null,null,null,null,null,null,null,null,null,null,null,"$",0]
[null,"Outstanding Loan(s)",null,null,null,null,null,null,null,null,null,null,null,null,null,null,null,null,null,null,null,null,"-","$",0]
[null,"Equity",null,null,null,null,null,null,null,null,null,null,null,null,null,null,null,null,null,null,null,null,"=","$",{"$f":"Y21-Y22","v":0}]
[]
[null,"Type"]
[null,"Make"]
[null,"Model"]
[null,"Purchase Price of Vehicle",null,null,null,null,null,null,"$",0]
[null,"Year of Purchase"]
[null,"Fair Market Value",null,null,null,null,null,null,null,null,null,null,null,null,null,null,null,null,null,null,null,null,null,"$",0]
[null,"Outstanding Loan(s)",null,null,null,null,null,null,null,null,null,null,null,null,null,null,null,null,null,null,null,null,"-","$",0]
[null,"Equity",null,null,null,null,null,null,null,null,null,null,null,null,null,null,null,null,null,null,null,null,"=","$",{"$f":"Y30-Y31","v":0}]
[]
[null,"Type"]
[null,"Make"]
[null,"Model"]
[null,"Purchase Price of Vehicle",null,null,null,null,null,null,"$",0]
[null,"Year of Purchase"]
[null,"Fair Market Value",null,null,null,null,null,null,null,null,null,null,null,null,null,null,null,null,null,null,null,null,null,"$",0]
[null,"Outstanding Loan(s)",null,null,null,null,null,null,null,null,null,null,null,null,null,null,null,null,null,null,null,null,"-","$",0]
[null,"Equity",null,null,null,null,null,null,null,null,null,null,null,null,null,null,null,null,null,null,null,null,"=","$",{"$f":"Y39-Y40","v":0}]
[]
[]
[null,null,null,null,null,null,null,null,null,null,null,null,null,null,null,null,null,null,null,null,null,null,"c.g.f."]

{"sheet":"Additional Assets (Vehicles-2)","index":14,"n_rows":44,"n_cols":25,"rows_kept":44,"cut":false,"hidden":false,"merged":[[0,0,0,27],[24,1,24,2],[24,3,24,12],[20,1,20,5],[20,24,20,27],[21,1,21,5],[15,1,15,2],[13,1,13,2],[4,1,5,18],[6,1,6,2],[13,24,13,27],[8,3,8,12],[10,6,10,12],[11,24,11,27],[6,3,6,12],[7,3,7,12],[33,1,33,2],[33,3,33,12],[27,1,27,7],[27,9,27,12],[29,1,29,5],[28,1,28,5],[28,6,28,12],[31,1,31,2],[7,1,7,2],[31,24,31,27],[18,1,18,7],[22,24,22,27],[22,1,22,2],[19,1,19,5],[18,9,18,12],[26,3,26,12],[10,1,10,5],[9,9,9,12],[9,1,9,7],[15,3,15,12],[8,1,8,2],[12,1,12,5],[25,1,25,2],[25,3,25,12],[2,18,2,20],[2,21,2,27],[29,24,29,27],[30,1,30,5],[30,24,30,27],[26,1,26,2],[12,24,12,27],[21,24,21,27],[19,6,19,12],[16,1,16,2],[17,1,17,2],[17,3,17,12],[16,3,16,12],[2,0,2,1],[2,2,2,12],[11,1,11,5],[34,1,34,2],[34,3,34,12],[35,1,35,2],[35,3,35,12],[36,1,36,7],[36,9,36,12],[37,1,37,5],[37,6,37,12],[38,1,38,5],[38,24,38,27],[43,22,43,28],[39,1,39,5],[39,24,39,27],[40,1,40,2],[40,24,40,27]]}
["ADDITIONAL ASSETS (MOTOR VEHICLES) - LONG FORM  (Section VIII., continued)"]
[]
["Name:",null,{"$f":"'Page 1'!E14","v":0},null,null,null,null,null,null,null,null,null,null,null,null,null,null,null,"Docket No.",null,null,{"$f":"'Page 1'!X2","v":0}]
[]
[null,"MOTOR VEHICLES including cars, trucks, ATVs, snowmobiles, tractors, motorcycles, boats, recreational vehicles, aircraft, farm machinery, etc."]
[]
[null,"Type"]
[null,"Make"]
[null,"Model"]
[null,"Purchase Price of Vehicle",null,null,null,null,null,null,"$",0]
[null,"Year of Purchase"]
[null,"Fair Market Value",null,null,null,null,null,null,null,null,null,null,null,null,null,null,null,null,null,null,null,null,null,"$",0]
[null,"Outstanding Loan(s)",null,null,null,null,null,null,null,null,null,null,null,null,null,null,null,null,null,null,null,null,"-","$",0]
[null,"Equity",null,null,null,null,null,null,null,null,null,null,null,null,null,null,null,null,null,null,null,null,"=","$",{"$f":"Y12-Y13","v":0}]
[]
[null,"Type"]
[null,"Make"]
[null,"Model"]
[null,"Purchase Price of Vehicle",null,null,null,null,null,null,"$",0]
[null,"Year of Purchase"]
[null,"Fair Market Value",null,null,null,null,null,null,null,null,null,null,null,null,null,null,null,null,null,null,null,null,null,"$",0]
[null,"Outstanding Loan(s)",null,null,null,null,null,null,null,null,null,null,null,null,null,null,null,null,null,null,null,null,"-","$",0]
[null,"Equity",null,null,null,null,null,null,null,null,null,null,null,null,null,null,null,null,null,null,null,null,"=","$",{"$f":"Y21-Y22","v":0}]
[]
[null,"Type"]
[null,"Make"]
[null,"Model"]
[null,"Purchase Price of Vehicle",null,null,null,null,null,null,"$",0]
[null,"Year of Purchase"]
[null,"Fair Market Value",null,null,null,null,null,null,null,null,null,null,null,null,null,null,null,null,null,null,null,null,null,"$",0]
[null,"Outstanding Loan(s)",null,null,null,null,null,null,null,null,null,null,null,null,null,null,null,null,null,null,null,null,"-","$",0]
[null,"Equity",null,null,null,null,null,null,null,null,null,null,null,null,null,null,null,null,null,null,null,null,"=","$",{"$f":"Y30-Y31","v":0}]
[]
[null,"Type"]
[null,"Make"]
[null,"Model"]
[null,"Purchase Price of Vehicle",null,null,null,null,null,null,"$",0]
[null,"Year of Purchase"]
[null,"Fair Market Value",null,null,null,null,null,null,null,null,null,null,null,null,null,null,null,null,null,null,null,null,null,"$",0]
[null,"Outstanding Loan(s)",null,null,null,null,null,null,null,null,null,null,null,null,null,null,null,null,null,null,null,null,"-","$",0]
[null,"Equity",null,null,null,null,null,null,null,null,null,null,null,null,null,null,null,null,null,null,null,null,"=","$",{"$f":"Y39-Y40","v":0}]
[]
[]
[null,null,null,null,null,null,null,null,null,null,null,null,null,null,null,null,null,null,null,null,null,null,"c.g.f."]

{"sheet":"Additional Assets (Other)","index":15,"n_rows":46,"n_cols":23,"rows_kept":46,"cut":false,"hidden":false,"merged":[[41,0,41,5],[41,6,41,11],[41,12,41,16],[41,17,41,21],[41,23,41,27],[40,0,40,5],[40,6,40,11],[40,12,40,16],[45,22,45,28],[42,23,42,27],[43,0,43,5],[43,6,43,11],[43,12,43,16],[43,17,43,21],[43,23,43,27],[42,0,42,5],[42,6,42,11],[42,12,42,16],[42,17,42,21],[39,17,39,21],[39,23,39,27],[38,0,38,5],[38,6,38,11],[38,12,38,16],[38,17,38,21],[40,17,40,21],[37,23,37,27],[38,23,38,27],[39,0,39,5],[39,6,39,11],[39,12,39,16],[37,0,37,5],[37,6,37,11],[37,12,37,16],[37,17,37,21],[40,23,40,27],[36,23,36,27],[36,0,36,5],[36,6,36,11],[36,12,36,16],[36,17,36,21],[35,23,35,27],[34,0,34,5],[34,6,34,11],[34,12,34,16],[34,17,34,21],[34,23,34,27],[35,0,35,5],[35,6,35,11],[35,12,35,16],[35,17,35,21],[30,12,30,16],[30,17,30,21],[30,23,30,27],[31,0,31,5],[31,6,31,11],[31,12,31,16],[31,17,31,21],[31,23,31,27],[30,0,30,5],[30,6,30,11],[33,23,33,27],[32,0,32,5],[32,6,32,11],[32,12,32,16],[32,17,32,21],[32,23,32,27],[33,0,33,5],[33,6,33,11],[33,12,33,16],[33,17,33,21],[2,2,2,12],[2,18,2,20],[2,21,2,27],[5,0,5,5],[5,6,5,11],[5,12,5,16],[4,6,4,11],[4,12,4,16],[12,12,12,16],[5,23,5,27],[5,17,5,21],[6,23,6,27],[13,0,13,5],[13,6,13,11],[13,12,13,16],[13,17,13,21],[8,0,8,5],[7,0,7,5],[6,0,6,5],[12,17,12,21],[8,6,8,11],[8,12,8,16],[9,12,9,16],[6,6,6,11],[6,12,6,16],[9,6,9,11],[7,6,7,11],[7,12,7,16],[10,6,10,11],[6,17,6,21],[11,12,11,16],[9,0,9,5],[14,23,14,27],[15,17,15,21],[15,23,15,27],[16,23,16,27],[10,17,10,21],[11,17,11,21],[9,23,9,27],[7,17,7,21],[9,17,9,21],[8,17,8,21],[14,17,14,21],[12,23,12,27],[13,23,13,27],[22,0,22,5],[22,6,22,11],[22,17,22,21],[21,17,21,21],[20,17,20,21],[21,6,21,11],[10,12,10,16],[14,0,14,5],[14,6,14,11],[14,12,14,16],[17,0,17,5],[17,6,17,11],[12,0,12,5],[12,6,12,11],[21,0,21,5],[20,0,20,5],[20,12,20,16],[18,0,18,5],[18,6,18,11],[18,12,18,16],[10,0,10,5],[17,12,17,16],[21,12,21,16],[19,17,19,21],[19,0,19,5],[19,6,19,11],[21,23,21,27],[18,23,18,27],[19,23,19,27],[17,23,17,27],[20,6,20,11],[18,17,18,21],[15,0,15,5],[15,6,15,11],[15,12,15,16],[16,0,16,5],[16,6,16,11],[16,12,16,16],[17,17,17,21],[16,17,16,21],[0,0,0,27],[2,0,2,1],[22,23,22,27],[23,0,23,5],[23,6,23,11],[24,0,24,5],[24,6,24,11],[24,12,24,16],[24,17,24,21],[19,12,19,16],[23,17,23,21],[23,12,23,16],[4,17,4,21],[4,22,4,27],[7,23,7,27],[8,23,8,27],[24,23,24,27],[10,23,10,27],[11,23,11,27],[23,23,23,27],[20,23,20,27],[22,12,22,16],[11,0,11,5],[11,6,11,11],[25,23,25,27],[26,0,26,5],[26,6,26,11],[26,12,26,16],[26,17,26,21],[26,23,26,27],[25,0,25,5],[25,6,25,11],[25,12,25,16],[25,17,25,21],[29,0,29,5],[29,6,29,11],[29,17,29,21],[29,23,29,27],[29,12,29,16],[27,0,27,5],[28,12,28,16],[28,17,28,21],[28,23,28,27],[27,6,27,11],[27,12,27,16],[27,17,27,21],[27,23,27,27],[28,0,28,5],[28,6,28,11]]}
["ADDITIONAL ASSETS (OTHER) - LONG FORM  (Section VIII., continued)"]
[]
["Name:",null,{"$f":"'Page 1'!E14","v":0},null,null,null,null,null,null,null,null,null,null,null,null,null,null,null,"Docket No.",null,null,{"$f":"'Page 1'!X2","v":0}]
[]
[null,null,null,null,null,null,"Institution",null,null,null,null,null,"Account Number",null,null,null,null,"Listed Beneficiary",null,null,null,null,"Current Balance / Value"]
[null,null,null,null,null,null,null,null,null,null,null,null,null,null,null,null,null,null,null,null,null,null,"$"]
[null,null,null,null,null,null,null,null,null,null,null,null,null,null,null,null,null,null,null,null,null,null,"$"]
[null,null,null,null,null,null,null,null,null,null,null,null,null,null,null,null,null,null,null,null,null,null,"$"]
[null,null,null,null,null,null,null,null,null,null,null,null,null,null,null,null,null,null,null,null,null,null,"$"]
[null,null,null,null,null,null,null,null,null,null,null,null,null,null,null,null,null,null,null,null,null,null,"$"]
[null,null,null,null,null,null,null,null,null,null,null,null,null,null,null,null,null,null,null,null,null,null,"$"]
[null,null,null,null,null,null,null,null,null,null,null,null,null,null,null,null,null,null,null,null,null,null,"$"]
[null,null,null,null,null,null,null,null,null,null,null,null,null,null,null,null,null,null,null,null,null,null,"$"]
[null,null,null,null,null,null,null,null,null,null,null,null,null,null,null,null,null,null,null,null,null,null,"$"]
[null,null,null,null,null,null,null,null,null,null,null,null,null,null,null,null,null,null,null,null,null,null,"$"]
[null,null,null,null,null,null,null,null,null,null,null,null,null,null,null,null,null,null,null,null,null,null,"$"]
[null,null,null,null,null,null,null,null,null,null,null,null,null,null,null,null,null,null,null,null,null,null,"$"]
[null,null,null,null,null,null,null,null,null,null,null,null,null,null,null,null,null,null,null,null,null,null,"$"]
[null,null,null,null,null,null,null,null,null,null,null,null,null,null,null,null,null,null,null,null,null,null,"$"]
[null,null,null,null,null,null,null,null,null,null,null,null,null,null,null,null,null,null,null,null,null,null,"$"]
[null,null,null,null,null,null,null,null,null,null,null,null,null,null,null,null,null,null,null,null,null,null,"$"]
[null,null,null,null,null,null,null,null,null,null,null,null,null,null,null,null,null,null,null,null,null,null,"$"]
[null,null,null,null,null,null,null,null,null,null,null,null,null,null,null,null,null,null,null,null,null,null,"$"]
[null,null,null,null,null,null,null,null,null,null,null,null,null,null,null,null,null,null,null,null,null,null,"$"]
[null,null,null,null,null,null,null,null,null,null,null,null,null,null,null,null,null,null,null,null,null,null,"$"]
[null,null,null,null,null,null,null,null,null,null,null,null,null,null,null,null,null,null,null,null,null,null,"$"]
[null,null,null,null,null,null,null,null,null,null,null,null,null,null,null,null,null,null,null,null,null,null,"$"]
[null,null,null,null,null,null,null,null,null,null,null,null,null,null,null,null,null,null,null,null,null,null,"$"]
[null,null,null,null,null,null,null,null,null,null,null,null,null,null,null,null,null,null,null,null,null,null,"$"]
[null,null,null,null,null,null,null,null,null,null,null,null,null,null,null,null,null,null,null,null,null,null,"$"]
[null,null,null,null,null,null,null,null,null,null,null,null,null,null,null,null,null,null,null,null,null,null,"$"]
[null,null,null,null,null,null,null,null,null,null,null,null,null,null,null,null,null,null,null,null,null,null,"$"]
[null,null,null,null,null,null,null,null,null,null,null,null,null,null,null,null,null,null,null,null,null,null,"$"]
[null,null,null,null,null,null,null,null,null,null,null,null,null,null,null,null,null,null,null,null,null,null,"$"]
[null,null,null,null,null,null,null,null,null,null,null,null,null,null,null,null,null,null,null,null,null,null,"$"]
[null,null,null,null,null,null,null,null,null,null,null,null,null,null,null,null,null,null,null,null,null,null,"$"]
[null,null,null,null,null,null,null,null,null,null,null,null,null,null,null,null,null,null,null,null,null,null,"$"]
[null,null,null,null,null,null,null,null,null,null,null,null,null,null,null,null,null,null,null,null,null,null,"$"]
[null,null,null,null,null,null,null,null,null,null,null,null,null,null,null,null,null,null,null,null,null,null,"$"]
[null,null,null,null,null,null,null,null,null,null,null,null,null,null,null,null,null,null,null,null,null,null,"$"]
[null,null,null,null,null,null,null,null,null,null,null,null,null,null,null,null,null,null,null,null,null,null,"$"]
[null,null,null,null,null,null,null,null,null,null,null,null,null,null,null,null,null,null,null,null,null,null,"$"]
[null,null,null,null,null,null,null,null,null,null,null,null,null,null,null,null,null,null,null,null,null,null,"$"]
[null,null,null,null,null,null,null,null,null,null,null,null,null,null,null,null,null,null,null,null,null,null,"$"]
[]
[null,null,null,null,null,null,null,null,null,null,null,null,null,null,null,null,null,null,null,null,null,null,"c.g.f"]

{"sheet":"Additional Liabilities","index":16,"n_rows":42,"n_cols":24,"rows_kept":42,"cut":false,"hidden":false,"merged":[[37,18,38,22],[37,23,38,23],[35,6,36,11],[35,12,36,16],[35,17,36,17],[21,28,22,28],[23,28,24,28],[25,28,26,28],[27,24,28,27],[21,24,22,27],[25,24,26,27],[23,24,24,27],[35,23,36,23],[35,24,36,27],[31,28,32,28],[33,28,34,28],[33,23,34,23],[35,28,36,28],[33,24,34,27],[27,28,28,28],[29,28,30,28],[29,17,30,17],[29,18,30,22],[31,12,32,16],[31,18,32,22],[31,17,32,17],[27,23,28,23],[31,23,32,23],[31,24,32,27],[29,12,30,16],[29,24,30,27],[17,0,18,5],[17,6,18,11],[25,23,26,23],[23,12,24,16],[21,12,22,16],[23,17,24,17],[23,18,24,22],[23,23,24,23],[21,18,22,22],[21,23,22,23],[21,0,22,5],[21,6,22,11],[19,0,20,5],[19,6,20,11],[23,0,24,5],[23,6,24,11],[0,0,0,27],[19,17,20,17],[19,18,20,22],[4,6,4,11],[4,12,4,16],[4,0,4,5],[5,0,6,5],[15,23,16,23],[5,12,6,16],[15,18,16,22],[7,0,8,5],[13,12,14,16],[13,17,14,17],[15,12,16,16],[9,24,10,27],[9,18,10,22],[4,23,4,27],[5,23,6,23],[5,24,6,27],[4,17,4,22],[5,18,6,22],[13,18,14,22],[13,23,14,23],[13,24,14,27],[5,28,6,28],[7,6,8,11],[7,12,8,16],[7,17,8,17],[7,18,8,22],[7,23,8,23],[7,24,8,27],[7,28,8,28],[5,17,6,17],[5,6,6,11],[9,28,10,28],[11,24,12,27],[11,0,12,5],[11,6,12,11],[11,12,12,16],[11,17,12,17],[11,18,12,22],[11,23,12,23],[9,6,10,11],[9,23,10,23],[11,28,12,28],[9,0,10,5],[9,12,10,16],[9,17,10,17],[13,28,14,28],[17,28,18,28],[15,28,16,28],[15,24,16,27],[17,24,18,27],[19,28,20,28],[17,12,18,16],[17,17,18,17],[17,18,18,22],[17,23,18,23],[19,12,20,16],[19,24,20,27],[19,23,20,23],[15,17,16,17],[41,0,41,3],[41,12,41,16],[41,20,41,28],[33,0,34,5],[33,6,34,11],[33,12,34,16],[31,0,32,5],[31,6,32,11],[35,18,36,22],[39,24,40,27],[37,24,38,27],[37,28,38,28],[35,0,36,5],[39,28,40,28],[39,0,40,5],[39,6,40,11],[39,12,40,16],[39,17,40,17],[39,18,40,22],[39,23,40,23],[37,0,38,5],[37,6,38,11],[37,12,38,16],[37,17,38,17],[2,0,2,1],[2,2,2,12],[2,18,2,20],[2,21,2,27],[33,17,34,17],[33,18,34,22],[27,18,28,22],[25,17,26,17],[25,18,26,22],[29,23,30,23],[29,0,30,5],[29,6,30,11],[25,0,26,5],[25,6,26,11],[27,0,28,5],[27,6,28,11],[13,0,14,5],[13,6,14,11],[15,6,16,11],[15,0,16,5],[25,12,26,16],[21,17,22,17],[27,12,28,16],[27,17,28,17]]}
["ADDITIONAL LIABILITIES - LONG FORM  (Section IX., continued)"]
[]
["Name:",null,{"$f":"'Page 1'!E14","v":0},null,null,null,null,null,null,null,null,null,null,null,null,null,null,null,"Docket No.",null,null,{"$f":"'Page 1'!X2","v":0}]
[]
["CREDITOR",null,null,null,null,null,"NATURE OF DEBT",null,null,null,null,null,"DATE INCURRED",null,null,null,null,"AMOUNT DUE",null,null,null,null,null,"WEEKLY PAYMENT"]
[null,null,null,null,null,null,null,null,null,null,null,null,null,null,null,null,null,"$",null,null,null,null,null,"$"]
[]
[null,null,null,null,null,null,null,null,null,null,null,null,null,null,null,null,null,"$",null,null,null,null,null,"$"]
[]
[null,null,null,null,null,null,null,null,null,null,null,null,null,null,null,null,null,"$",null,null,null,null,null,"$"]
[]
[null,null,null,null,null,null,null,null,null,null,null,null,null,null,null,null,null,"$",null,null,null,null,null,"$"]
[]
[null,null,null,null,null,null,null,null,null,null,null,null,null,null,null,null,null,"$",null,null,null,null,null,"$"]
[]
[null,null,null,null,null,null,null,null,null,null,null,null,null,null,null,null,null,"$",null,null,null,null,null,"$"]
[]
[null,null,null,null,null,null,null,null,null,null,null,null,null,null,null,null,null,"$",null,null,null,null,null,"$"]
[]
[null,null,null,null,null,null,null,null,null,null,null,null,null,null,null,null,null,"$",null,null,null,null,null,"$"]
[]
[null,null,null,null,null,null,null,null,null,null,null,null,null,null,null,null,null,"$",null,null,null,null,null,"$"]
[]
[null,null,null,null,null,null,null,null,null,null,null,null,null,null,null,null,null,"$",null,null,null,null,null,"$"]
[]
[null,null,null,null,null,null,null,null,null,null,null,null,null,null,null,null,null,"$",null,null,null,null,null,"$"]
[]
[null,null,null,null,null,null,null,null,null,null,null,null,null,null,null,null,null,"$",null,null,null,null,null,"$"]
[]
[null,null,null,null,null,null,null,null,null,null,null,null,null,null,null,null,null,"$",null,null,null,null,null,"$"]
[]
[null,null,null,null,null,null,null,null,null,null,null,null,null,null,null,null,null,"$",null,null,null,null,null,"$"]
[]
[null,null,null,null,null,null,null,null,null,null,null,null,null,null,null,null,null,"$",null,null,null,null,null,"$"]
[]
[null,null,null,null,null,null,null,null,null,null,null,null,null,null,null,null,null,"$",null,null,null,null,null,"$"]
[]
[null,null,null,null,null,null,null,null,null,null,null,null,null,null,null,null,null,"$",null,null,null,null,null,"$"]
[]
[null,null,null,null,null,null,null,null,null,null,null,null,null,null,null,null,null,"$",null,null,null,null,null,"$"]
[]
[null,null,null,null,null,null,null,null,null,null,null,null,null,null,null,null,null,null,null,null,"c.g.f."]

{"sheet":"Additional Liabilities (2)","index":17,"n_rows":42,"n_cols":24,"rows_kept":42,"cut":false,"hidden":false,"merged":[[0,0,0,27],[2,0,2,1],[2,2,2,12],[2,18,2,20],[2,21,2,27],[4,0,4,5],[4,6,4,11],[4,12,4,16],[4,17,4,22],[4,23,4,27],[5,0,6,5],[5,6,6,11],[5,12,6,16],[5,17,6,17],[5,18,6,22],[5,23,6,23],[5,24,6,27],[5,28,6,28],[7,0,8,5],[7,6,8,11],[7,12,8,16],[7,17,8,17],[7,18,8,22],[7,23,8,23],[7,24,8,27],[7,28,8,28],[9,0,10,5],[9,6,10,11],[9,12,10,16],[9,17,10,17],[9,18,10,22],[9,23,10,23],[9,24,10,27],[9,28,10,28],[11,0,12,5],[11,6,12,11],[11,12,12,16],[11,17,12,17],[11,18,12,22],[11,23,12,23],[11,24,12,27],[11,28,12,28],[13,0,14,5],[13,6,14,11],[13,12,14,16],[13,17,14,17],[13,18,14,22],[13,23,14,23],[13,24,14,27],[13,28,14,28],[15,0,16,5],[15,6,16,11],[15,12,16,16],[15,17,16,17],[15,18,16,22],[15,23,16,23],[15,24,16,27],[15,28,16,28],[17,0,18,5],[17,6,18,11],[17,12,18,16],[17,17,18,17],[17,18,18,22],[17,23,18,23],[17,24,18,27],[17,28,18,28],[19,0,20,5],[19,6,20,11],[19,12,20,16],[19,17,20,17],[19,18,20,22],[19,23,20,23],[19,24,20,27],[19,28,20,28],[21,0,22,5],[21,6,22,11],[21,12,22,16],[21,17,22,17],[21,18,22,22],[21,23,22,23],[21,24,22,27],[21,28,22,28],[23,0,24,5],[23,6,24,11],[23,12,24,16],[23,17,24,17],[23,18,24,22],[23,23,24,23],[23,24,24,27],[23,28,24,28],[25,0,26,5],[25,6,26,11],[25,12,26,16],[25,17,26,17],[25,18,26,22],[25,23,26,23],[25,24,26,27],[25,28,26,28],[27,0,28,5],[27,6,28,11],[27,12,28,16],[27,17,28,17],[27,18,28,22],[27,23,28,23],[27,24,28,27],[27,28,28,28],[29,0,30,5],[29,6,30,11],[29,12,30,16],[29,17,30,17],[29,18,30,22],[29,23,30,23],[29,24,30,27],[29,28,30,28],[31,0,32,5],[31,6,32,11],[31,12,32,16],[31,17,32,17],[31,18,32,22],[31,23,32,23],[31,24,32,27],[31,28,32,28],[33,0,34,5],[33,6,34,11],[33,12,34,16],[33,17,34,17],[33,18,34,22],[33,23,34,23],[33,24,34,27],[33,28,34,28],[35,0,36,5],[35,6,36,11],[35,12,36,16],[35,17,36,17],[35,18,36,22],[35,23,36,23],[35,24,36,27],[35,28,36,28],[41,0,41,3],[41,12,41,16],[41,20,41,28],[37,24,38,27],[37,28,38,28],[39,0,40,5],[39,6,40,11],[39,12,40,16],[39,17,40,17],[39,18,40,22],[39,23,40,23],[39,24,40,27],[39,28,40,28],[37,0,38,5],[37,6,38,11],[37,12,38,16],[37,17,38,17],[37,18,38,22],[37,23,38,23]]}
["ADDITIONAL LIABILITIES - LONG FORM  (Section IX., continued)"]
[]
["Name:",null,{"$f":"'Page 1'!E14","v":0},null,null,null,null,null,null,null,null,null,null,null,null,null,null,null,"Docket No.",null,null,{"$f":"'Page 1'!X2","v":0}]
[]
["CREDITOR",null,null,null,null,null,"NATURE OF DEBT",null,null,null,null,null,"DATE INCURRED",null,null,null,null,"AMOUNT DUE",null,null,null,null,null,"WEEKLY PAYMENT"]
[null,null,null,null,null,null,null,null,null,null,null,null,null,null,null,null,null,"$",null,null,null,null,null,"$"]
[]
[null,null,null,null,null,null,null,null,null,null,null,null,null,null,null,null,null,"$",null,null,null,null,null,"$"]
[]
[null,null,null,null,null,null,null,null,null,null,null,null,null,null,null,null,null,"$",null,null,null,null,null,"$"]
[]
[null,null,null,null,null,null,null,null,null,null,null,null,null,null,null,null,null,"$",null,null,null,null,null,"$"]
[]
[null,null,null,null,null,null,null,null,null,null,null,null,null,null,null,null,null,"$",null,null,null,null,null,"$"]
[]
[null,null,null,null,null,null,null,null,null,null,null,null,null,null,null,null,null,"$",null,null,null,null,null,"$"]
[]
[null,null,null,null,null,null,null,null,null,null,null,null,null,null,null,null,null,"$",null,null,null,null,null,"$"]
[]
[null,null,null,null,null,null,null,null,null,null,null,null,null,null,null,null,null,"$",null,null,null,null,null,"$"]
[]
[null,null,null,null,null,null,null,null,null,null,null,null,null,null,null,null,null,"$",null,null,null,null,null,"$"]
[]
[null,null,null,null,null,null,null,null,null,null,null,null,null,null,null,null,null,"$",null,null,null,null,null,"$"]
[]
[null,null,null,null,null,null,null,null,null,null,null,null,null,null,null,null,null,"$",null,null,null,null,null,"$"]
[]
[null,null,null,null,null,null,null,null,null,null,null,null,null,null,null,null,null,"$",null,null,null,null,null,"$"]
[]
[null,null,null,null,null,null,null,null,null,null,null,null,null,null,null,null,null,"$",null,null,null,null,null,"$"]
[]
[null,null,null,null,null,null,null,null,null,null,null,null,null,null,null,null,null,"$",null,null,null,null,null,"$"]
[]
[null,null,null,null,null,null,null,null,null,null,null,null,null,null,null,null,null,"$",null,null,null,null,null,"$"]
[]
[null,null,null,null,null,null,null,null,null,null,null,null,null,null,null,null,null,"$",null,null,null,null,null,"$"]
[]
[null,null,null,null,null,null,null,null,null,null,null,null,null,null,null,null,null,"$",null,null,null,null,null,"$"]
[]
[null,null,null,null,null,null,null,null,null,null,null,null,null,null,null,null,null,"$",null,null,null,null,null,"$"]
[]
[null,null,null,null,null,null,null,null,null,null,null,null,null,null,null,null,null,null,null,null,"c.g.f."]

{"sheet":"Schedule A (Page 1)","index":18,"n_rows":49,"n_cols":20,"rows_kept":49,"cut":false,"hidden":false,"merged":[[42,2,42,16],[35,6,35,16],[36,3,36,16],[37,3,37,16],[38,3,38,16],[39,3,39,16],[40,6,40,16],[41,0,41,4],[30,5,30,16],[31,6,31,16],[32,7,32,16],[33,7,33,16],[34,6,34,16],[41,6,41,16],[30,0,30,3],[31,0,31,5],[32,0,32,6],[42,0,42,1],[34,0,34,5],[36,0,36,1],[12,3,12,16],[13,3,13,16],[14,4,14,16],[15,3,15,16],[16,4,16,16],[14,0,14,3],[15,1,15,2],[16,1,16,3],[23,0,23,1],[22,0,22,6],[17,5,17,16],[18,5,18,16],[19,4,19,16],[20,3,20,16],[21,6,21,16],[22,7,22,16],[20,0,20,2],[21,0,21,5],[29,8,29,16],[26,1,26,15],[28,19,28,26],[23,19,23,26],[28,0,28,3],[27,0,27,6],[23,3,23,16],[27,8,27,16],[28,5,28,16],[25,1,25,15],[24,0,24,14],[29,0,29,7],[0,0,1,26],[2,0,2,1],[4,0,4,26],[2,2,2,13],[9,0,9,6],[11,0,11,4],[11,19,11,26],[2,15,2,17],[19,0,19,3],[2,18,2,26],[6,0,7,6],[6,19,7,26],[12,0,12,2],[13,0,13,2],[12,19,12,26],[13,19,13,26],[11,5,11,16],[14,19,14,26],[15,19,15,26],[16,19,16,26],[18,1,18,3],[17,1,17,4],[17,19,17,26],[18,19,18,26],[21,19,21,26],[19,19,19,26],[22,19,22,26],[25,19,25,26],[26,19,26,26],[27,19,27,26],[41,19,41,26],[20,19,20,26],[24,19,24,26],[36,19,36,26],[29,19,29,26],[30,19,30,26],[31,19,31,26],[32,19,32,26],[42,19,42,26],[37,19,37,26],[38,19,38,26],[33,19,33,26],[34,19,34,26],[35,19,35,26],[46,19,46,26],[44,19,44,26],[48,12,48,16],[48,19,48,27],[39,19,39,26],[40,19,40,26],[45,19,45,26],[45,1,45,15],[39,0,39,1],[40,0,40,5],[48,0,48,4],[43,19,43,26],[44,1,44,15],[43,0,43,5],[38,0,38,1],[37,0,37,2],[35,0,35,5],[33,0,33,6]]}
["FINANCIAL STATEMENT SCHEDULE A"]
[]
["Name:",null,{"$f":"'Page 1'!E14","v":0},null,null,null,null,null,null,null,null,null,null,null,null,"Docket No.",null,null,{"$f":"'Page 1'!X2","v":0}]
[]
["MONTHLY SELF-EMPLOYMENT OR BUSINESS INCOME"]
[]
["GROSS MONTHLY RECEIPTS",null,null,null,null,null,null,null,null,null,null,null,null,null,null,null,null,null,null,0]
[]
[]
["Monthly Business Expenses"]
[]
["Cost of goods sold",null,null,null,null,null,null,null,null,null,null,null,null,null,null,null,null,null,"$",0]
["Advertising",null,null,null,null,null,null,null,null,null,null,null,null,null,null,null,null,null,"$",0]
["Bad Debts",null,null,null,null,null,null,null,null,null,null,null,null,null,null,null,null,null,"$",0]
["Motor Vehicles",null,null,null,null,null,null,null,null,null,null,null,null,null,null,null,null,null,"$",0]
[null,"Gas",null,null,null,null,null,null,null,null,null,null,null,null,null,null,null,null,"$",0]
[null,"Insurance",null,null,null,null,null,null,null,null,null,null,null,null,null,null,null,null,"$",0]
[null,"Maintenance",null,null,null,null,null,null,null,null,null,null,null,null,null,null,null,null,"$",0]
[null,"Registration",null,null,null,null,null,null,null,null,null,null,null,null,null,null,null,null,"$",0]
["Commissions",null,null,null,null,null,null,null,null,null,null,null,null,null,null,null,null,null,"$",0]
["Depletion",null,null,null,null,null,null,null,null,null,null,null,null,null,null,null,null,null,"$",0]
["Dues and Publications",null,null,null,null,null,null,null,null,null,null,null,null,null,null,null,null,null,"$",0]
["Employee Benefit Programs",null,null,null,null,null,null,null,null,null,null,null,null,null,null,null,null,null,"$",0]
["Freight",null,null,null,null,null,null,null,null,null,null,null,null,null,null,null,null,null,"$",0]
["Insurance (other than health), please specify type of insurance:"]
[null,null,null,null,null,null,null,null,null,null,null,null,null,null,null,null,null,null,"$",0]
[null,null,null,null,null,null,null,null,null,null,null,null,null,null,null,null,null,null,"$",0]
["Interest on mortgage to banks",null,null,null,null,null,null,null,null,null,null,null,null,null,null,null,null,null,"$",0]
["Interest on loans",null,null,null,null,null,null,null,null,null,null,null,null,null,null,null,null,null,"$",0]
["Legal and Professional services",null,null,null,null,null,null,null,null,null,null,null,null,null,null,null,null,null,"$",0]
["Office expenses",null,null,null,null,null,null,null,null,null,null,null,null,null,null,null,null,null,"$",0]
["Laundry and cleaning",null,null,null,null,null,null,null,null,null,null,null,null,null,null,null,null,null,"$",0]
["Pension and profit sharing",null,null,null,null,null,null,null,null,null,null,null,null,null,null,null,null,null,"$",0]
["Rent on leased equipment",null,null,null,null,null,null,null,null,null,null,null,null,null,null,null,null,null,"$",0]
["Machinery/Equipment",null,null,null,null,null,null,null,null,null,null,null,null,null,null,null,null,null,"$",0]
["Other business property",null,null,null,null,null,null,null,null,null,null,null,null,null,null,null,null,null,"$",0]
["Repairs",null,null,null,null,null,null,null,null,null,null,null,null,null,null,null,null,null,"$",0]
["Supplies",null,null,null,null,null,null,null,null,null,null,null,null,null,null,null,null,null,"$",0]
["Taxes",null,null,null,null,null,null,null,null,null,null,null,null,null,null,null,null,null,"$",0]
["Travel",null,null,null,null,null,null,null,null,null,null,null,null,null,null,null,null,null,"$",0]
["Meals and entertainment",null,null,null,null,null,null,null,null,null,null,null,null,null,null,null,null,null,"$",0]
["Utilities and phones",null,null,null,null,null,null,null,null,null,null,null,null,null,null,null,null,null,"$",0]
["Wages",null,null,null,null,null,null,null,null,null,null,null,null,null,null,null,null,null,"$",0]
["Other expenses (specify):"]
[null,null,null,null,null,null,null,null,null,null,null,null,null,null,null,null,null,null,"$",0]
[null,null,null,null,null,null,null,null,null,null,null,null,null,null,null,null,null,null,"$",0]
[]
[]
["CJ-D 301 Schedule A (4/07)",null,null,null,null,null,null,null,null,null,null,null,"Page 1 of 2",null,null,null,null,null,null,"c.g.f."]

{"sheet":"Schedule A (Page 2)","index":19,"n_rows":48,"n_cols":20,"rows_kept":48,"cut":false,"hidden":false,"merged":[[20,8,20,18],[20,19,20,25],[19,8,19,18],[18,2,18,7],[18,19,18,25],[18,8,18,18],[19,2,19,7],[14,19,14,25],[14,2,14,7],[15,2,15,7],[15,8,15,18],[15,19,15,25],[24,19,24,25],[22,2,22,7],[22,8,22,18],[22,19,22,25],[2,0,3,6],[2,19,3,26],[5,0,7,17],[5,19,6,26],[17,19,17,25],[17,2,17,7],[16,2,16,7],[16,8,16,18],[8,0,9,26],[12,1,12,27],[16,19,16,25],[14,8,14,18],[47,12,47,16],[25,2,25,7],[25,8,25,18],[47,0,47,4],[30,1,30,25],[35,0,36,0],[47,19,47,27],[25,19,25,25],[33,16,33,26],[32,16,32,26],[26,2,26,7],[26,8,26,18],[26,19,26,25],[32,1,32,11],[38,0,39,0],[38,1,39,10],[38,19,39,26],[33,1,33,11],[35,1,36,9],[35,19,36,26],[0,0,1,26],[23,2,23,7],[23,8,23,18],[23,19,23,25],[17,8,17,18],[19,19,19,25],[20,2,20,7],[21,2,21,7],[21,8,21,18],[21,19,21,25],[24,2,24,7],[24,8,24,18]]}
["FINANCIAL STATEMENT SCHEDULE A"]
[]
["TOTAL MONTHLY EXPENSES",null,null,null,null,null,null,null,null,null,null,null,null,null,null,null,null,null,null,{"$f":"SUM('Schedule A (Page 1)'!T12:AA46)","v":0}]
[]
[]
["WEEKLY BUSINESS INCOME (Gross monthly receipts less total monthly expenses divided by 4.3) Enter this amount in Section II, line (d) of CJ-D 301-L or Section 2(d) of CJ-D 301-S.",null,null,null,null,null,null,null,null,null,null,null,null,null,null,null,null,null,null,{"$f":"('Schedule A (Page 1)'!T7-'Schedule A (Page 2)'!T3)/4.3","v":0}]
[]
[]
["NATURE OF SELF-EMPLOYMENT OR BUSINESS"]
[]
["1.","Is this business seasonal in nature?"]
[]
["2.","If seasonal business, please specify percentage of income received and expenses incurred for each month of the year."]
[]
[null,null,"MONTH",null,null,null,null,null,"PERCENTAGE OF INCOME RECEIVED",null,null,null,null,null,null,null,null,null,null,"EXPENSES INCURRED"]
[null,null,"January"]
[null,null,"February"]
[null,null,"March"]
[null,null,"April"]
[null,null,"May"]
[null,null,"June"]
[null,null,"July"]
[null,null,"August"]
[null,null,"September"]
[null,null,"October"]
[null,null,"November"]
[null,null,"December"]
[]
["3.","State whether your business accounts on a calendar year basis or fiscal year basis:"]
[]
["4.","If your business accounts on a fiscal year basis, give the starting and ending dates of your chosen fiscal year:"]
[]
[]
[null,"starting",null,null,null,null,null,null,null,null,null,null,null,null,null,null,"ending"]
[]
["5.","State your gross receipts, year to date:"]
[]
[]
["6.","State your gross expenses, year to date:"]
[]
[]
[]
[]
[]
[]
[]
[]
["CJ-D 301 Schedule A (4/07)",null,null,null,null,null,null,null,null,null,null,null,"Page 2 of 2",null,null,null,null,null,null,"c.g.f."]

{"sheet":"Schedule B","index":20,"n_rows":46,"n_cols":20,"rows_kept":46,"cut":false,"hidden":false,"merged":[[45,12,45,16],[45,19,45,27],[26,19,26,26],[27,19,27,26],[34,18,35,26],[43,19,43,26],[30,18,30,26],[29,19,29,26],[28,2,28,15],[45,0,45,4],[34,1,36,15],[18,19,18,26],[19,19,19,26],[20,19,20,26],[28,19,28,26],[22,19,22,26],[23,19,23,26],[24,19,24,26],[25,19,25,26],[17,19,17,26],[0,0,1,26],[2,0,2,1],[4,0,4,26],[2,2,2,13],[2,15,2,17],[2,18,2,26],[6,19,7,26],[6,0,7,6],[15,19,15,26],[11,19,11,26],[12,19,12,26],[13,19,13,26],[16,19,16,26],[21,1,21,2],[30,1,30,7],[9,0,9,6],[21,19,21,26],[11,1,11,3],[12,1,12,6],[13,1,13,3],[14,19,14,26],[14,1,14,7],[18,2,18,15],[19,2,19,15],[20,1,20,8],[27,2,27,15],[15,1,15,4],[16,1,16,7],[17,1,17,6]]}
["FINANCIAL STATEMENT SCHEDULE B"]
[]
["Name:",null,{"$f":"'Page 1'!E14","v":0},null,null,null,null,null,null,null,null,null,null,null,null,"Docket No.",null,null,{"$f":"'Page 1'!X2","v":0}]
[]
["RENT FROM INCOME PRODUCING PROPERTY"]
[]
["ANNUAL RENT RECEIVED",null,null,null,null,null,null,null,null,null,null,null,null,null,null,null,null,null,null,0]
[]
[]
["ANNUAL RENTAL EXPENSES"]
[]
[null,"Advertising",null,null,null,null,null,null,null,null,null,null,null,null,null,null,null,null,"$",0]
[null,"Motor Vehicle and Travel",null,null,null,null,null,null,null,null,null,null,null,null,null,null,null,null,"$",0]
[null,"Insurance",null,null,null,null,null,null,null,null,null,null,null,null,null,null,null,null,"$",0]
[null,"Cleaning and maintenance",null,null,null,null,null,null,null,null,null,null,null,null,null,null,null,null,"$",0]
[null,"Commissions",null,null,null,null,null,null,null,null,null,null,null,null,null,null,null,null,"$",0]
[null,"Interest on mortgage to banks",null,null,null,null,null,null,null,null,null,null,null,null,null,null,null,null,"$",0]
[null,"Other interest (specify):"]
[null,null,null,null,null,null,null,null,null,null,null,null,null,null,null,null,null,null,"$",0]
[null,null,null,null,null,null,null,null,null,null,null,null,null,null,null,null,null,null,"$",0]
[null,"Legal and professional services",null,null,null,null,null,null,null,null,null,null,null,null,null,null,null,null,"$",0]
[null,"Repairs",null,null,null,null,null,null,null,null,null,null,null,null,null,null,null,null,"$",0]
[null,"Supplies",null,null,null,null,null,null,null,null,null,null,null,null,null,null,null,null,"$",0]
[null,"Taxes",null,null,null,null,null,null,null,null,null,null,null,null,null,null,null,null,"$",0]
[null,"Utilities",null,null,null,null,null,null,null,null,null,null,null,null,null,null,null,null,"$",0]
[null,"Wages",null,null,null,null,null,null,null,null,null,null,null,null,null,null,null,null,"$",0]
[null,"Other expenses: (specify):"]
[null,null,null,null,null,null,null,null,null,null,null,null,null,null,null,null,null,null,"$",0]
[null,null,null,null,null,null,null,null,null,null,null,null,null,null,null,null,null,null,"$",0]
[]
[null,"TOTAL ANNUAL EXPENSES",null,null,null,null,null,null,null,null,null,null,null,null,null,null,null,null,{"$f":"SUM(T12:AA29)","v":0}]
[]
[]
[]
[null,"TOTAL WEEKLY RENTAL INCOME (Gross rent received less expenses, divided by 52). Enter this amount in Section II, line (n) of CJ-D 301-L or Section 2(n) of CJ-D 301-S",null,null,null,null,null,null,null,null,null,null,null,null,null,null,null,null,{"$f":"(T7-S31)/52","v":0}]
[]
[]
[]
[]
[]
[]
[]
[]
[]
[]
["CJ-D 301 Schedule B (4/07)",null,null,null,null,null,null,null,null,null,null,null,null,null,null,null,null,null,null,"c.g.f."]

{"sheet":"Schedule B (2)","index":21,"n_rows":46,"n_cols":20,"rows_kept":46,"cut":false,"hidden":false,"merged":[[30,18,30,26],[26,19,26,26],[27,19,27,26],[20,1,20,8],[27,2,27,15],[25,19,25,26],[24,19,24,26],[45,0,45,4],[0,0,1,26],[2,0,2,1],[4,0,4,26],[2,2,2,13],[9,0,9,6],[11,19,11,26],[2,15,2,17],[2,18,2,26],[6,0,7,6],[6,19,7,26],[12,19,12,26],[13,19,13,26],[11,1,11,3],[12,1,12,6],[13,1,13,3],[14,19,14,26],[15,19,15,26],[21,1,21,2],[21,19,21,26],[14,1,14,7],[15,1,15,4],[16,1,16,7],[17,1,17,6],[18,2,18,15],[19,2,19,15],[45,12,45,16],[45,19,45,27],[16,19,16,26],[17,19,17,26],[18,19,18,26],[19,19,19,26],[20,19,20,26],[34,18,35,26],[29,19,29,26],[43,19,43,26],[28,19,28,26],[23,19,23,26],[34,1,36,15],[22,19,22,26],[30,1,30,7],[28,2,28,15]]}
["FINANCIAL STATEMENT SCHEDULE B"]
[]
["Name:",null,{"$f":"'Page 1'!E14","v":0},null,null,null,null,null,null,null,null,null,null,null,null,"Docket No.",null,null,{"$f":"'Page 1'!X2","v":0}]
[]
["RENT FROM INCOME PRODUCING PROPERTY"]
[]
["ANNUAL RENT RECEIVED",null,null,null,null,null,null,null,null,null,null,null,null,null,null,null,null,null,null,0]
[]
[]
["ANNUAL RENTAL EXPENSES"]
[]
[null,"Advertising",null,null,null,null,null,null,null,null,null,null,null,null,null,null,null,null,"$",0]
[null,"Motor Vehicle and Travel",null,null,null,null,null,null,null,null,null,null,null,null,null,null,null,null,"$",0]
[null,"Insurance",null,null,null,null,null,null,null,null,null,null,null,null,null,null,null,null,"$",0]
[null,"Cleaning and maintenance",null,null,null,null,null,null,null,null,null,null,null,null,null,null,null,null,"$",0]
[null,"Commissions",null,null,null,null,null,null,null,null,null,null,null,null,null,null,null,null,"$",0]
[null,"Interest on mortgage to banks",null,null,null,null,null,null,null,null,null,null,null,null,null,null,null,null,"$",0]
[null,"Other interest (specify):"]
[null,null,null,null,null,null,null,null,null,null,null,null,null,null,null,null,null,null,"$",0]
[null,null,null,null,null,null,null,null,null,null,null,null,null,null,null,null,null,null,"$",0]
[null,"Legal and professional services",null,null,null,null,null,null,null,null,null,null,null,null,null,null,null,null,"$",0]
[null,"Repairs",null,null,null,null,null,null,null,null,null,null,null,null,null,null,null,null,"$",0]
[null,"Supplies",null,null,null,null,null,null,null,null,null,null,null,null,null,null,null,null,"$",0]
[null,"Taxes",null,null,null,null,null,null,null,null,null,null,null,null,null,null,null,null,"$",0]
[null,"Utilities",null,null,null,null,null,null,null,null,null,null,null,null,null,null,null,null,"$",0]
[null,"Wages",null,null,null,null,null,null,null,null,null,null,null,null,null,null,null,null,"$",0]
[null,"Other expenses: (specify):"]
[null,null,null,null,null,null,null,null,null,null,null,null,null,null,null,null,null,null,"$",0]
[null,null,null,null,null,null,null,null,null,null,null,null,null,null,null,null,null,null,"$",0]
[]
[null,"TOTAL ANNUAL EXPENSES",null,null,null,null,null,null,null,null,null,null,null,null,null,null,null,null,{"$f":"SUM(T12:AA29)","v":0}]
[]
[]
[]
[null,"TOTAL WEEKLY RENTAL INCOME (Gross rent received less expenses, divided by 52). Enter this amount in Section II, line (n) of CJ-D 301-L or Section 2(n) of CJ-D 301-S",null,null,null,null,null,null,null,null,null,null,null,null,null,null,null,null,{"$f":"(T7-S31)/52","v":0}]
[]
[]
[]
[]
[]
[]
[]
[]
[]
[]
["CJ-D 301 Schedule B (4/07)",null,null,null,null,null,null,null,null,null,null,null,null,null,null,null,null,null,null,"c.g.f."]

{"sheet":"Schedule B (3)","index":22,"n_rows":46,"n_cols":20,"rows_kept":46,"cut":false,"hidden":false,"merged":[[45,12,45,16],[45,19,45,27],[26,19,26,26],[27,19,27,26],[34,18,35,26],[43,19,43,26],[30,18,30,26],[29,19,29,26],[28,2,28,15],[45,0,45,4],[34,1,36,15],[18,19,18,26],[19,19,19,26],[20,19,20,26],[28,19,28,26],[22,19,22,26],[23,19,23,26],[24,19,24,26],[25,19,25,26],[17,19,17,26],[0,0,1,26],[2,0,2,1],[4,0,4,26],[2,2,2,13],[2,15,2,17],[2,18,2,26],[6,19,7,26],[6,0,7,6],[15,19,15,26],[11,19,11,26],[12,19,12,26],[13,19,13,26],[16,19,16,26],[21,1,21,2],[30,1,30,7],[9,0,9,6],[21,19,21,26],[11,1,11,3],[12,1,12,6],[13,1,13,3],[14,19,14,26],[14,1,14,7],[18,2,18,15],[19,2,19,15],[20,1,20,8],[27,2,27,15],[15,1,15,4],[16,1,16,7],[17,1,17,6]]}
["FINANCIAL STATEMENT SCHEDULE B"]
[]
["Name:",null,{"$f":"'Page 1'!E14","v":0},null,null,null,null,null,null,null,null,null,null,null,null,"Docket No.",null,null,{"$f":"'Page 1'!X2","v":0}]
[]
["RENT FROM INCOME PRODUCING PROPERTY"]
[]
["ANNUAL RENT RECEIVED",null,null,null,null,null,null,null,null,null,null,null,null,null,null,null,null,null,null,0]
[]
[]
["ANNUAL RENTAL EXPENSES"]
[]
[null,"Advertising",null,null,null,null,null,null,null,null,null,null,null,null,null,null,null,null,"$",0]
[null,"Motor Vehicle and Travel",null,null,null,null,null,null,null,null,null,null,null,null,null,null,null,null,"$",0]
[null,"Insurance",null,null,null,null,null,null,null,null,null,null,null,null,null,null,null,null,"$",0]
[null,"Cleaning and maintenance",null,null,null,null,null,null,null,null,null,null,null,null,null,null,null,null,"$",0]
[null,"Commissions",null,null,null,null,null,null,null,null,null,null,null,null,null,null,null,null,"$",0]
[null,"Interest on mortgage to banks",null,null,null,null,null,null,null,null,null,null,null,null,null,null,null,null,"$",0]
[null,"Other interest (specify):"]
[null,null,null,null,null,null,null,null,null,null,null,null,null,null,null,null,null,null,"$",0]
[null,null,null,null,null,null,null,null,null,null,null,null,null,null,null,null,null,null,"$",0]
[null,"Legal and professional services",null,null,null,null,null,null,null,null,null,null,null,null,null,null,null,null,"$",0]
[null,"Repairs",null,null,null,null,null,null,null,null,null,null,null,null,null,null,null,null,"$",0]
[null,"Supplies",null,null,null,null,null,null,null,null,null,null,null,null,null,null,null,null,"$",0]
[null,"Taxes",null,null,null,null,null,null,null,null,null,null,null,null,null,null,null,null,"$",0]
[null,"Utilities",null,null,null,null,null,null,null,null,null,null,null,null,null,null,null,null,"$",0]
[null,"Wages",null,null,null,null,null,null,null,null,null,null,null,null,null,null,null,null,"$",0]
[null,"Other expenses: (specify):"]
[null,null,null,null,null,null,null,null,null,null,null,null,null,null,null,null,null,null,"$",0]
[null,null,null,null,null,null,null,null,null,null,null,null,null,null,null,null,null,null,"$",0]
[]
[null,"TOTAL ANNUAL EXPENSES",null,null,null,null,null,null,null,null,null,null,null,null,null,null,null,null,{"$f":"SUM(T12:AA29)","v":0}]
[]
[]
[]
[null,"TOTAL WEEKLY RENTAL INCOME (Gross rent received less expenses, divided by 52). Enter this amount in Section II, line (n) of CJ-D 301-L or Section 2(n) of CJ-D 301-S",null,null,null,null,null,null,null,null,null,null,null,null,null,null,null,null,{"$f":"(T7-S31)/52","v":0}]
[]
[]
[]
[]
[]
[]
[]
[]
[]
[]
["CJ-D 301 Schedule B (4/07)",null,null,null,null,null,null,null,null,null,null,null,null,null,null,null,null,null,null,"c.g.f."]

{"sheet":"Explanatory Notes","index":23,"n_rows":8,"n_cols":2,"rows_kept":8,"cut":false,"hidden":false,"merged":[[1,0,1,1],[3,0,3,1],[2,0,2,1],[0,0,0,1]]}
[]
["EXPLANATORY NOTES"]
["TO FINANCIAL STATEMENT OF"]
[{"$f":"'Page 1'!E14","v":0}]
[]
["#","Explanation of Notation"]
[]
[1,"Enter explanatory note here and <TAB> to next data entry field."]